Workbook

Sheet Figure 2
A1: Note: Absolute fluorescence intensity (pre normalisation) shown. Data was normalised to the max FI highlighted in red
A3: Figure 2b | S3: Figure 2c
B5: Emission Wavelength(nm) | C5: RAP2.12 concentration (µM) | M5: Max FI | N5: =MAX(C7:K2507) -> 91702.05 | Q5: Emission Wavelength (nm) | R5: AtPCO4 | W5: Max FI | X5: =MAX(R7:U2507) -> 62415.66
C6: 0 | D6: 93.75 | E6: 187.5 | F6: 281.25 | G6: 375 | H6: 468.75 | I6: 562.5 | J6: 656.25 | K6: 750 | M6: Wavelength | N6: 328.6 | R6: WT | S6: W121F | T6: W217F | U6: W121/217F | W6: Wavelength | X6: 327.6
B7: 300 | C7: 19298.1 | D7: 16481.18 | E7: 15173.59 | F7: 13576.23 | G7: 13668.36 | H7: 12453.5 | I7: 12773.28 | J7: 12371.7 | K7: 13055.51 | Q7: 300 | R7: 13534.08 | S7: 5729.621 | T7: 3168.299 | U7: 1122.297
B8: 300.2 | C8: 19686.96 | D8: 16850.02 | E8: 15473.98 | F8: 13853.77 | G8: 13850.41 | H8: 12725.66 | I8: 13013.83 | J8: 12567.32 | K8: 13261.7 | Q8: 300.2 | R8: 13679.61 | S8: 5778.297 | T8: 3171.307 | U8: 1167.072
B9: 300.4 | C9: 20263.23 | D9: 17302.63 | E9: 15878.78 | F9: 14213.74 | G9: 14176.3 | H9: 13033.99 | I9: 13290.31 | J9: 12892.45 | K9: 13603.25 | Q9: 300.4 | R9: 14037.84 | S9: 5842.931 | T9: 3216.167 | U9: 1144.838
B10: 300.6 | C10: 20742.78 | D10: 17758.82 | E10: 16248.32 | F10: 14536.14 | G10: 14572.63 | H10: 13384.88 | I10: 13598.71 | J10: 13181.77 | K10: 13937.75 | Q10: 300.6 | R10: 14379.3 | S10: 5981.54 | T10: 3278.526 | U10: 1144.884
B11: 300.8 | C11: 21392.51 | D11: 18275.62 | E11: 16706.66 | F11: 14889.37 | G11: 14935.75 | H11: 13717.91 | I11: 13883.98 | J11: 13562.66 | K11: 14249.37 | Q11: 300.8 | R11: 14773.42 | S11: 6080.64 | T11: 3308.937 | U11: 1156.351
B12: 301 | C12: 22087.39 | D12: 18830.82 | E12: 17258.97 | F12: 15429.17 | G12: 15371.44 | H12: 14059.75 | I12: 14302 | J12: 13890.22 | K12: 14638.31 | Q12: 301 | R12: 15367.37 | S12: 6182.255 | T12: 3399.157 | U12: 1132.201
B13: 301.2 | C13: 22537.08 | D13: 19254.28 | E13: 17622.05 | F13: 15761.23 | G13: 15727.74 | H13: 14475.9 | I13: 14669.57 | J13: 14127.36 | K13: 14981.98 | Q13: 301.2 | R13: 15696.5 | S13: 6343.664 | T13: 3443.035 | U13: 1173.825
B14: 301.4 | C14: 23041.92 | D14: 19650.75 | E14: 18039.46 | F14: 16055.4 | G14: 15968.32 | H14: 14634.92 | I14: 14955.63 | J14: 14517.65 | K14: 15246.32 | Q14: 301.4 | R14: 15977.32 | S14: 6405.051 | T14: 3459.647 | U14: 1168.304
B15: 301.6 | C15: 23454.42 | D15: 20000.27 | E15: 18362.14 | F15: 16370.52 | G15: 16398.63 | H15: 14960.18 | I15: 15121.1 | J15: 14721.77 | K15: 15533.81 | Q15: 301.6 | R15: 16223.92 | S15: 6486.069 | T15: 3487.696 | U15: 1167.003
B16: 301.8 | C16: 23977.06 | D16: 20409.19 | E16: 18691.44 | F16: 16660.49 | G16: 16590.06 | H16: 15173.21 | I16: 15506.19 | J16: 14985.68 | K16: 15730.86 | Q16: 301.8 | R16: 16638.73 | S16: 6622.312 | T16: 3541.281 | U16: 1150.842
B17: 302 | C17: 24422.91 | D17: 20864.99 | E17: 19076.35 | F17: 16934.03 | G17: 16920.02 | H17: 15412.99 | I17: 15682.2 | J17: 15123.93 | K17: 15993.42 | Q17: 302 | R17: 16958.43 | S17: 6669.915 | T17: 3587.965 | U17: 1157.342
B18: 302.2 | C18: 25010.58 | D18: 21335.66 | E18: 19439.7 | F18: 17342.23 | G18: 17253.2 | H18: 15904.07 | I18: 16044.33 | J18: 15479.53 | K18: 16361.16 | Q18: 302.2 | R18: 17297.66 | S18: 6756.092 | T18: 3631.664 | U18: 1168.21
B19: 302.4 | C19: 25471.6 | D19: 21740.06 | E19: 19805.54 | F19: 17600.94 | G19: 17607.96 | H19: 16110.03 | I19: 16344.96 | J19: 15838.79 | K19: 16649.93 | Q19: 302.4 | R19: 17686.64 | S19: 6849.815 | T19: 3686.672 | U19: 1169.209
B20: 302.6 | C20: 26198.52 | D20: 22287.74 | E20: 20314.82 | F20: 18075.27 | G20: 18048.23 | H20: 16352.16 | I20: 16619.8 | J20: 16123.15 | K20: 17040.43 | Q20: 302.6 | R20: 18082.96 | S20: 7017.233 | T20: 3715.905 | U20: 1161.482
B21: 302.8 | C21: 26798.77 | D21: 22871.36 | E21: 20820.26 | F21: 18538.64 | G21: 18419.66 | H21: 16874.82 | I21: 17016.65 | J21: 16518.73 | K21: 17388.46 | Q21: 302.8 | R21: 18565.92 | S21: 7118.47 | T21: 3741.046 | U21: 1163.076
B22: 303 | C22: 27456.31 | D22: 23405.18 | E22: 21339.9 | F22: 18902.62 | G22: 18849.21 | H22: 17253.89 | I22: 17497.76 | J22: 16926.87 | K22: 17711.82 | Q22: 303 | R22: 19008.64 | S22: 7257.167 | T22: 3804.048 | U22: 1182.987
B23: 303.2 | C23: 28213.07 | D23: 24002.45 | E23: 21860.52 | F23: 19358.33 | G23: 19309.82 | H23: 17588.17 | I23: 17751.66 | J23: 17209.75 | K23: 18183.93 | Q23: 303.2 | R23: 19468.31 | S23: 7388.928 | T23: 3842.325 | U23: 1188.405
B24: 303.4 | C24: 29123.27 | D24: 24799.34 | E24: 22578.19 | F24: 20000.07 | G24: 19983.67 | H24: 18225.76 | I24: 18366.49 | J24: 17796.47 | K24: 18662.68 | Q24: 303.4 | R24: 20114.13 | S24: 7550.422 | T24: 3858.028 | U24: 1174.678
B25: 303.6 | C25: 29879.54 | D25: 25463.47 | E25: 23136.51 | F25: 20492.66 | G25: 20540.89 | H25: 18471.47 | I25: 18713.94 | J25: 18192.12 | K25: 19187.28 | Q25: 303.6 | R25: 20611.45 | S25: 7738.764 | T25: 3967.503 | U25: 1193.594
B26: 303.8 | C26: 30728.8 | D26: 26049.41 | E26: 23697.82 | F26: 20977.52 | G26: 20811.11 | H26: 18918.18 | I26: 19204.49 | J26: 18587.06 | K26: 19592.7 | Q26: 303.8 | R26: 21042.9 | S26: 7886.624 | T26: 4035.596 | U26: 1197.195
B27: 304 | C27: 31363.16 | D27: 26703.38 | E27: 24384.45 | F27: 21503.66 | G27: 21355.2 | H27: 19379.58 | I27: 19585.3 | J27: 18974.66 | K27: 20082.12 | Q27: 304 | R27: 21640.6 | S27: 7994.381 | T27: 4036.024 | U27: 1201.645
B28: 304.2 | C28: 32057.37 | D28: 27339.11 | E28: 24804.88 | F28: 21930.11 | G28: 21816.01 | H28: 19851.83 | I28: 20059.7 | J28: 19427.16 | K28: 20422.55 | Q28: 304.2 | R28: 22192.51 | S28: 8177.008 | T28: 4100.818 | U28: 1205.264
B29: 304.4 | C29: 32748.56 | D29: 27879.78 | E29: 25348.81 | F29: 22428.54 | G29: 22239.31 | H29: 20230.31 | I29: 20411.7 | J29: 19670.4 | K29: 20839.65 | Q29: 304.4 | R29: 22574.35 | S29: 8327.072 | T29: 4133.055 | U29: 1208.995
B30: 304.6 | C30: 33279.51 | D30: 28409.08 | E30: 25798.35 | F30: 22753.7 | G30: 22680.58 | H30: 20508.56 | I30: 20736.33 | J30: 20072.92 | K30: 21091.44 | Q30: 304.6 | R30: 22992.66 | S30: 8514.167 | T30: 4237.512 | U30: 1183.316
B31: 304.8 | C31: 33875.09 | D31: 28895.41 | E31: 26236.04 | F31: 23116.26 | G31: 23070.77 | H31: 20833.84 | I31: 21115.69 | J31: 20394.7 | K31: 21487.16 | Q31: 304.8 | R31: 23415.64 | S31: 8533.883 | T31: 4222.638 | U31: 1213.116
B32: 305 | C32: 34441.09 | D32: 29294.89 | E32: 26672.04 | F32: 23482.76 | G32: 23414.41 | H32: 21303.78 | I32: 21363.92 | J32: 20542.4 | K32: 21721.92 | Q32: 305 | R32: 23733.93 | S32: 8703.531 | T32: 4308.18 | U32: 1218.653
B33: 305.2 | C33: 35013.67 | D33: 29856.56 | E33: 27058.49 | F33: 23828.5 | G33: 23754.95 | H33: 21475.51 | I33: 21678.15 | J33: 20999.5 | K33: 22114.32 | Q33: 305.2 | R33: 24208.58 | S33: 8750.809 | T33: 4299.602 | U33: 1224.801
B34: 305.4 | C34: 35644.22 | D34: 30325.33 | E34: 27490.72 | F34: 24199.38 | G34: 24065.32 | H34: 21776.6 | I34: 21941.41 | J34: 21244.74 | K34: 22345.38 | Q34: 305.4 | R34: 24550.99 | S34: 8908.686 | T34: 4323.3 | U34: 1210.376
B35: 305.6 | C35: 36406.08 | D35: 31004.67 | E35: 28134.42 | F35: 24735.46 | G35: 24743.74 | H35: 22262.02 | I35: 22354.63 | J35: 21732.58 | K35: 22814.11 | Q35: 305.6 | R35: 25128.13 | S35: 9051.583 | T35: 4404.055 | U35: 1213.353
B36: 305.8 | C36: 37187.61 | D36: 31682.46 | E36: 28785.07 | F36: 25227.24 | G36: 25185.46 | H36: 22734.5 | I36: 22889.32 | J36: 22219.01 | K36: 23302.75 | Q36: 305.8 | R36: 25629.68 | S36: 9270.464 | T36: 4434.831 | U36: 1205.467
B37: 306 | C37: 37996.41 | D37: 32366.48 | E37: 29311.44 | F37: 25738.49 | G37: 25712.71 | H37: 23022.51 | I37: 23361.32 | J37: 22650.04 | K37: 23783.47 | Q37: 306 | R37: 26189.72 | S37: 9349.987 | T37: 4470.807 | U37: 1209.94
B38: 306.2 | C38: 38633.86 | D38: 33027.17 | E38: 29876.84 | F38: 26185.56 | G38: 26094.69 | H38: 23464.68 | I38: 23767.98 | J38: 23025.79 | K38: 24125.73 | Q38: 306.2 | R38: 26610.86 | S38: 9533.869 | T38: 4530.18 | U38: 1222.267
B39: 306.4 | C39: 39484.97 | D39: 33659.07 | E39: 30454.29 | F39: 26779.86 | G39: 26628.62 | H39: 23972.15 | I39: 24252.81 | J39: 23384.52 | K39: 24555.12 | Q39: 306.4 | R39: 27190.5 | S39: 9681.623 | T39: 4570.24 | U39: 1190.053
B40: 306.6 | C40: 40175.66 | D40: 34237.15 | E40: 31003.54 | F40: 27211.04 | G40: 27093.84 | H40: 24388.33 | I40: 24578.16 | J40: 23704.31 | K40: 24967.28 | Q40: 306.6 | R40: 27690.99 | S40: 9820.091 | T40: 4631.619 | U40: 1200.527
B41: 306.8 | C41: 41197.78 | D41: 35086.72 | E41: 31737.79 | F41: 27806.13 | G41: 27694.31 | H41: 24910.36 | I41: 25168 | J41: 24182.54 | K41: 25440.66 | Q41: 306.8 | R41: 28363.94 | S41: 9963.681 | T41: 4668.544 | U41: 1214.213
B42: 307 | C42: 41978.94 | D42: 35663.6 | E42: 32391.28 | F42: 28234.41 | G42: 28110.14 | H42: 25278.17 | I42: 25574.65 | J42: 24537.88 | K42: 26005.62 | Q42: 307 | R42: 28876.24 | S42: 10164.64 | T42: 4706.79 | U42: 1222.79
B43: 307.2 | C43: 42580.93 | D43: 36259.27 | E43: 32794.97 | F43: 28722.13 | G43: 28648.75 | H43: 25660.56 | I43: 25985.95 | J43: 24984.93 | K43: 26403.25 | Q43: 307.2 | R43: 29290.21 | S43: 10312.8 | T43: 4709.809 | U43: 1203.655
B44: 307.4 | C44: 43145.19 | D44: 36753.39 | E44: 33242.79 | F44: 29082.33 | G44: 28995.57 | H44: 25988.64 | I44: 26262.07 | J44: 25276.56 | K44: 26626.48 | Q44: 307.4 | R44: 29764.36 | S44: 10450.35 | T44: 4770.817 | U44: 1218.778
B45: 307.6 | C45: 43757.96 | D45: 37176.53 | E45: 33691.88 | F45: 29400.15 | G45: 29374.62 | H45: 26331.44 | I45: 26450.3 | J45: 25614.44 | K45: 27076.63 | Q45: 307.6 | R45: 30054.2 | S45: 10583.91 | T45: 4804.562 | U45: 1183.224
B46: 307.8 | C46: 44428.51 | D46: 37790.76 | E46: 34194.09 | F46: 29797.48 | G46: 29760.07 | H46: 26615.76 | I46: 26889.78 | J46: 26027.7 | K46: 27338.38 | Q46: 307.8 | R46: 30629.74 | S46: 10705.04 | T46: 4852.105 | U46: 1212.799
B47: 308 | C47: 45016.81 | D47: 38259.16 | E47: 34571.71 | F47: 30248.16 | G47: 30260.77 | H47: 26943.32 | I47: 27147.84 | J47: 26257.11 | K47: 27721.67 | Q47: 308 | R47: 31045.23 | S47: 10714.17 | T47: 4843.25 | U47: 1197.481
B48: 308.2 | C48: 45493.04 | D48: 38690.45 | E48: 35049.78 | F48: 30547.16 | G48: 30548.87 | H48: 27389.96 | I48: 27486.43 | J48: 26496.89 | K48: 27945.89 | Q48: 308.2 | R48: 31342.56 | S48: 10915.27 | T48: 4935.927 | U48: 1195.673
B49: 308.4 | C49: 46194.26 | D49: 39233.98 | E49: 35435.76 | F49: 30950.12 | G49: 30941.77 | H49: 27576.74 | I49: 27831.87 | J49: 26806.28 | K49: 28267.54 | Q49: 308.4 | R49: 31660.9 | S49: 10964.13 | T49: 4914.546 | U49: 1197.142
B50: 308.6 | C50: 46773.57 | D50: 39712.87 | E50: 35936.5 | F50: 31310.92 | G50: 31303.91 | H50: 27977.74 | I50: 28193.81 | J50: 27165.14 | K50: 28576.02 | Q50: 308.6 | R50: 32124.93 | S50: 11105.75 | T50: 4922.477 | U50: 1179.561
B51: 308.8 | C51: 47579.86 | D51: 40483.34 | E51: 36580.19 | F51: 31921.71 | G51: 31905.37 | H51: 28291.83 | I51: 28626.09 | J51: 27511.59 | K51: 29142.6 | Q51: 308.8 | R51: 32608.32 | S51: 11271.5 | T51: 5002.373 | U51: 1175.394
B52: 309 | C52: 48545.04 | D52: 41307.24 | E52: 37312.04 | F52: 32416.52 | G52: 32461.8 | H52: 28913.89 | I52: 29078.18 | J52: 28164.71 | K52: 29656.05 | Q52: 309 | R52: 33414.34 | S52: 11435 | T52: 5050.467 | U52: 1163.483
B53: 309.2 | C53: 49374.69 | D53: 41978.03 | E53: 37992.24 | F53: 33022.53 | G53: 33006.29 | H53: 29329.68 | I53: 29574.77 | J53: 28538.74 | K53: 30125.38 | Q53: 309.2 | R53: 33991.09 | S53: 11600.2 | T53: 5066.584 | U53: 1159.928
B54: 309.4 | C54: 50207.87 | D54: 42609.49 | E54: 38502.22 | F54: 33518.57 | G54: 33480.7 | H54: 29812.62 | I54: 29972.59 | J54: 28931.16 | K54: 30452.28 | Q54: 309.4 | R54: 34374.15 | S54: 11753.77 | T54: 5178.358 | U54: 1162.397
B55: 309.6 | C55: 51056.73 | D55: 43355.66 | E55: 39084.83 | F55: 33961.32 | G55: 33970.07 | H55: 30226.99 | I55: 30587.17 | J55: 29405.34 | K55: 30926.35 | Q55: 309.6 | R55: 35071.33 | S55: 11937.12 | T55: 5181.777 | U55: 1144.62
B56: 309.8 | C56: 51756.8 | D56: 44026 | E56: 39567.97 | F56: 34482.59 | G56: 34494.24 | H56: 30605.86 | I56: 30903.94 | J56: 29704.74 | K56: 31420.39 | Q56: 309.8 | R56: 35587.69 | S56: 12037.06 | T56: 5225.2 | U56: 1119.552
B57: 310 | C57: 52696.8 | D57: 44847.3 | E57: 40367.8 | F57: 35084.86 | G57: 35120.88 | H57: 31192.12 | I57: 31255.64 | J57: 30253.28 | K57: 31919.08 | Q57: 310 | R57: 36228.54 | S57: 12263.82 | T57: 5233.712 | U57: 1141.114
B58: 310.2 | C58: 53455.93 | D58: 45334.69 | E58: 40826.24 | F58: 35530.79 | G58: 35512.29 | H58: 31546.97 | I58: 31720.68 | J58: 30548.31 | K58: 32231.97 | Q58: 310.2 | R58: 36654.64 | S58: 12343.88 | T58: 5267.297 | U58: 1102.525
B59: 310.4 | C59: 53941.47 | D59: 45823.73 | E59: 41225.41 | F59: 35842.04 | G59: 35945.59 | H59: 31928.51 | I59: 32191.43 | J59: 30835.85 | K59: 32579.08 | Q59: 310.4 | R59: 37126.05 | S59: 12435.71 | T59: 5309.96 | U59: 1092.445
B60: 310.6 | C60: 54418.09 | D60: 46275.72 | E60: 41645.89 | F60: 36170.27 | G60: 36070.14 | H60: 32209.41 | I60: 32362.56 | J60: 31260.63 | K60: 32932.21 | Q60: 310.6 | R60: 37379.05 | S60: 12567.75 | T60: 5330.353 | U60: 1094.048
B61: 310.8 | C61: 54868.29 | D61: 46563.98 | E61: 42054.25 | F61: 36463.45 | G61: 36415.29 | H61: 32528.93 | I61: 32576.52 | J61: 31372.1 | K61: 33074.56 | Q61: 310.8 | R61: 37812.42 | S61: 12602.52 | T61: 5381.966 | U61: 1101.368
B62: 311 | C62: 55508.47 | D62: 47044.55 | E62: 42408.92 | F62: 36844.81 | G62: 36733.84 | H62: 32755.49 | I62: 32919.16 | J62: 31671.13 | K62: 33389.45 | Q62: 311 | R62: 38129.16 | S62: 12696.19 | T62: 5372.465 | U62: 1080.517
B63: 311.2 | C63: 56137.77 | D63: 47566.42 | E63: 42983.02 | F63: 37156.55 | G63: 37200.83 | H63: 33008.65 | I63: 33257.24 | J63: 32075.95 | K63: 33827.5 | Q63: 311.2 | R63: 38420.68 | S63: 12898.37 | T63: 5389.13 | U63: 1068.97
B64: 311.4 | C64: 56677.17 | D64: 48169.5 | E64: 43368.48 | F64: 37613.21 | G64: 37495 | H64: 33372.3 | I64: 33631.57 | J64: 32239.97 | K64: 34105.09 | Q64: 311.4 | R64: 38811.42 | S64: 12906.64 | T64: 5442.981 | U64: 1075.196
B65: 311.6 | C65: 57179.62 | D65: 48603.26 | E65: 43738.58 | F65: 37934.44 | G65: 37912.15 | H65: 33652.77 | I65: 33924.42 | J65: 32629.43 | K65: 34319.21 | Q65: 311.6 | R65: 39327.49 | S65: 13083.22 | T65: 5461.27 | U65: 1040.011
B66: 311.8 | C66: 57951.74 | D66: 49162.47 | E66: 44239.28 | F66: 38392.46 | G66: 38390.1 | H66: 34167.44 | I66: 34378.75 | J66: 33008.08 | K66: 34715.15 | Q66: 311.8 | R66: 39819.3 | S66: 13172.54 | T66: 5512.314 | U66: 1035.491
B67: 312 | C67: 58633.67 | D67: 49794.08 | E67: 44788.94 | F67: 38889.79 | G67: 38794.54 | H67: 34420.99 | I67: 34600.38 | J67: 33330.92 | K67: 35162.55 | Q67: 312 | R67: 40127.67 | S67: 13293.73 | T67: 5500.252 | U67: 1020.936
B68: 312.2 | C68: 59506.72 | D68: 50464.92 | E68: 45483.58 | F68: 39358.12 | G68: 39355.1 | H68: 34971.41 | I68: 35111.99 | J68: 33683.16 | K68: 35580.97 | Q68: 312.2 | R68: 40741.73 | S68: 13469.41 | T68: 5527.203 | U68: 1009.794
B69: 312.4 | C69: 60215.19 | D69: 51099.12 | E69: 45983.61 | F69: 39811.64 | G69: 39851.75 | H69: 35421.75 | I69: 35434.47 | J69: 34175.52 | K69: 36001.94 | Q69: 312.4 | R69: 41244.78 | S69: 13664.37 | T69: 5599.728 | U69: 971.12
B70: 312.6 | C70: 61014.74 | D70: 51725.79 | E70: 46501.8 | F70: 40268.33 | G70: 40220.39 | H70: 35694.56 | I70: 36002.35 | J70: 34477.34 | K70: 36350.69 | Q70: 312.6 | R70: 41755.02 | S70: 13748.27 | T70: 5583.451 | U70: 968.428
B71: 312.8 | C71: 61545.23 | D71: 52185.69 | E71: 47014.47 | F71: 40672.55 | G71: 40601.14 | H71: 36043.5 | I71: 36082.35 | J71: 34835.06 | K71: 36694.89 | Q71: 312.8 | R71: 42041.33 | S71: 13843.73 | T71: 5601.222 | U71: 937.453
B72: 313 | C72: 62229.36 | D72: 52801.29 | E72: 47464.47 | F72: 41020.3 | G72: 41063.12 | H72: 36361.02 | I72: 36559.36 | J72: 35026.42 | K72: 37113.83 | Q72: 313 | R72: 42543.14 | S72: 13902.12 | T72: 5657.884 | U72: 934.68
B73: 313.2 | C73: 62802.75 | D73: 53340.93 | E73: 47957.16 | F73: 41438.03 | G73: 41514.48 | H73: 36731.78 | I73: 36922.19 | J73: 35468.45 | K73: 37300.58 | Q73: 313.2 | R73: 42865.77 | S73: 14016.94 | T73: 5707.461 | U73: 929.451
B74: 313.4 | C74: 63434.4 | D74: 53839.1 | E74: 48457.85 | F74: 41870.62 | G74: 41868.31 | H74: 37192.78 | I74: 37187.78 | J74: 35810.7 | K74: 37842.3 | Q74: 313.4 | R74: 43447.06 | S74: 14134.41 | T74: 5716.338 | U74: 909.726
B75: 313.6 | C75: 63828.64 | D75: 54264.03 | E75: 48702.04 | F75: 42143.84 | G75: 42219.22 | H75: 37399.85 | I75: 37533.97 | J75: 35959.77 | K75: 38090.06 | Q75: 313.6 | R75: 43729.12 | S75: 14194.4 | T75: 5723.633 | U75: 881.023
B76: 313.8 | C76: 64286.97 | D76: 54553.24 | E76: 49067.02 | F76: 42312.15 | G76: 42571.93 | H76: 37579.59 | I76: 37878.42 | J76: 36289.53 | K76: 38256.77 | Q76: 313.8 | R76: 43942.82 | S76: 14293.28 | T76: 5734.096 | U76: 903.466
B77: 314 | C77: 64781.64 | D77: 54857.45 | E77: 49380.68 | F77: 42658.13 | G77: 42695.48 | H77: 37789.83 | I77: 37943.82 | J77: 36532.1 | K77: 38414.59 | Q77: 314 | R77: 44338.81 | S77: 14329.58 | T77: 5697.478 | U77: 883.536
B78: 314.2 | C78: 65108.66 | D78: 55380.23 | E78: 49648.78 | F78: 42926.8 | G78: 42999.33 | H78: 37964.8 | I78: 38138.37 | J78: 36682.32 | K78: 38631.83 | Q78: 314.2 | R78: 44458.85 | S78: 14510.05 | T78: 5762.77 | U78: 861.357
B79: 314.4 | C79: 65810.39 | D79: 55782.31 | E79: 50145.42 | F79: 43255.05 | G79: 43397.87 | H79: 38230.16 | I79: 38465.22 | J79: 36987.6 | K79: 39030.95 | Q79: 314.4 | R79: 44979.93 | S79: 14584.53 | T79: 5774.226 | U79: 855.048
B80: 314.6 | C80: 66100.75 | D80: 56103.69 | E80: 50424.17 | F80: 43523.78 | G80: 43723.2 | H80: 38511.29 | I80: 38708.29 | J80: 37095.72 | K80: 39251.02 | Q80: 314.6 | R80: 45079.85 | S80: 14654.41 | T80: 5759.302 | U80: 826.995
B81: 314.8 | C81: 66656.42 | D81: 56588.25 | E81: 50895.43 | F81: 43930.04 | G81: 44180.75 | H81: 38777.53 | I81: 38964.51 | J81: 37447.26 | K81: 39608.97 | Q81: 314.8 | R81: 45587.94 | S81: 14681.91 | T81: 5838.716 | U81: 817.899
B82: 315 | C82: 67261.2 | D82: 57174.59 | E82: 51305.43 | F82: 44228.69 | G82: 44317.9 | H82: 39118.29 | I82: 39228.79 | J82: 37781.18 | K82: 39859.56 | Q82: 315 | R82: 46084.6 | S82: 14850.22 | T82: 5843.717 | U82: 811.446
B83: 315.2 | C83: 67895.09 | D83: 57593.51 | E83: 51721.65 | F83: 44620.85 | G83: 44616.34 | H83: 39415.93 | I83: 39725.04 | J83: 37970.85 | K83: 40238.09 | Q83: 315.2 | R83: 46366.77 | S83: 14978.34 | T83: 5815.772 | U83: 792.605
B84: 315.4 | C84: 68459.02 | D84: 58111.41 | E84: 52107.23 | F84: 45096.67 | G84: 45063.24 | H84: 39823.51 | I84: 40005.38 | J84: 38365.59 | K84: 40519.85 | Q84: 315.4 | R84: 46751.83 | S84: 15056.29 | T84: 5875.794 | U84: 787.838
B85: 315.6 | C85: 69338.74 | D85: 58837.55 | E85: 52845.33 | F85: 45642.05 | G85: 45590.68 | H85: 40314.5 | I85: 40465.97 | J85: 38851.4 | K85: 40899.51 | Q85: 315.6 | R85: 47399.41 | S85: 15270.39 | T85: 5940.692 | U85: 753.129
B86: 315.8 | C86: 69960.13 | D86: 59512 | E86: 53356.97 | F86: 45887.88 | G86: 46043.34 | H86: 40615.82 | I86: 40675.29 | J86: 39175.47 | K86: 41316.06 | Q86: 315.8 | R86: 47805.29 | S86: 15276.01 | T86: 5938.901 | U86: 735.479
B87: 316 | C87: 70488.1 | D87: 59897.83 | E87: 53746.45 | F87: 46306.8 | G87: 46456.54 | H87: 40896.22 | I87: 41018.35 | J87: 39456.07 | K87: 41680.08 | Q87: 316 | R87: 48190.32 | S87: 15432.6 | T87: 5979.351 | U87: 719.342
B88: 316.2 | C88: 71119.62 | D88: 60404.69 | E88: 54238.35 | F88: 46778.65 | G88: 46869.66 | H88: 41077.78 | I88: 41430.19 | J88: 39730.86 | K88: 42045.05 | Q88: 316.2 | R88: 48626.06 | S88: 15556.4 | T88: 5968.749 | U88: 728.144
B89: 316.4 | C89: 71782.1 | D89: 60962.67 | E89: 54601.66 | F89: 47070.57 | G89: 47094.98 | H89: 41524.91 | I89: 41783.6 | J89: 40037.8 | K89: 42281.62 | Q89: 316.4 | R89: 49017.33 | S89: 15624.03 | T89: 5955.161 | U89: 703.008
B90: 316.6 | C90: 72311.52 | D90: 61412.85 | E90: 55090.96 | F90: 47443 | G90: 47549.1 | H90: 41858.4 | I90: 42067.77 | J90: 40476.42 | K90: 42555.28 | Q90: 316.6 | R90: 49424.31 | S90: 15725.74 | T90: 6007.234 | U90: 678.486
B91: 316.8 | C91: 72787.43 | D91: 61786.18 | E91: 55509.04 | F91: 47646.72 | G91: 47875.64 | H91: 42216.05 | I91: 42307.03 | J91: 40683.19 | K91: 42926.06 | Q91: 316.8 | R91: 49572.51 | S91: 15827.23 | T91: 6034.038 | U91: 673.61
B92: 317 | C92: 73326.96 | D92: 62150.83 | E92: 55776.88 | F92: 47912.21 | G92: 48081.19 | H92: 42356.82 | I92: 42514.81 | J92: 40860.33 | K92: 43108.03 | Q92: 317 | R92: 50072.61 | S92: 15889.65 | T92: 6040.705 | U92: 658
B93: 317.2 | C93: 73638.17 | D93: 62553.6 | E93: 56020.06 | F93: 48234.1 | G93: 48480.93 | H93: 42643.43 | I93: 42681.11 | J93: 40913.94 | K93: 43288.74 | Q93: 317.2 | R93: 50222.73 | S93: 16050.41 | T93: 6041.116 | U93: 654.253
B94: 317.4 | C94: 74085.14 | D94: 62885.5 | E94: 56367.94 | F94: 48494.03 | G94: 48746.45 | H94: 42860.25 | I94: 42975.81 | J94: 41256.27 | K94: 43526.27 | Q94: 317.4 | R94: 50682.92 | S94: 16019.87 | T94: 6046.477 | U94: 642.533
B95: 317.6 | C95: 74584.75 | D95: 63243.17 | E95: 56729.52 | F95: 48867.16 | G95: 48998.93 | H95: 43091.44 | I95: 43367.96 | J95: 41594.72 | K95: 43765.8 | Q95: 317.6 | R95: 50877.4 | S95: 16083.63 | T95: 6091.593 | U95: 621.962
B96: 317.8 | C96: 75103.75 | D96: 63726.46 | E96: 57089.58 | F96: 49180.61 | G96: 49347.87 | H96: 43359.15 | I96: 43573.7 | J96: 41816.06 | K96: 44163.25 | Q96: 317.8 | R96: 51110.26 | S96: 16211.7 | T96: 6090.724 | U96: 613.245
B97: 318 | C97: 75646.25 | D97: 64314.84 | E97: 57623.16 | F97: 49546.24 | G97: 49654.07 | H97: 43700.57 | I97: 43841.54 | J97: 42028.69 | K97: 44418.32 | Q97: 318 | R97: 51693.86 | S97: 16409.08 | T97: 6089.114 | U97: 600.719
B98: 318.2 | C98: 76234.39 | D98: 64660.5 | E98: 57987.78 | F98: 49840.39 | G98: 49935.73 | H98: 44050.3 | I98: 44082.34 | J98: 42344.56 | K98: 44646.05 | Q98: 318.2 | R98: 51945.87 | S98: 16378.87 | T98: 6108.421 | U98: 584.321
B99: 318.4 | C99: 76784.62 | D99: 65148.79 | E99: 58352.73 | F99: 50155.35 | G99: 50334.52 | H99: 44231.3 | I99: 44367.19 | J99: 42630.69 | K99: 44905.72 | Q99: 318.4 | R99: 52467.53 | S99: 16534.55 | T99: 6141.77 | U99: 589.326
B100: 318.6 | C100: 77263.08 | D100: 65564.41 | E100: 58758.46 | F100: 50627.2 | G100: 50684.91 | H100: 44656.23 | I100: 44651.26 | J100: 42872.78 | K100: 45241.32 | Q100: 318.6 | R100: 52676.11 | S100: 16631.5 | T100: 6172.051 | U100: 572.619
B101: 318.8 | C101: 78007.69 | D101: 66208.67 | E101: 59299.51 | F101: 51034.13 | G101: 51139.53 | H101: 44922.53 | I101: 45135.78 | J101: 43206.44 | K101: 45716.75 | Q101: 318.8 | R101: 53268.49 | S101: 16792.22 | T101: 6177.864 | U101: 566.159
B102: 319 | C102: 78508.41 | D102: 66572.06 | E102: 59754.71 | F102: 51332.21 | G102: 51447.07 | H102: 45392.28 | I102: 45449.1 | J102: 43582.87 | K102: 45966.26 | Q102: 319 | R102: 53681.1 | S102: 16831.8 | T102: 6196.172 | U102: 557.072
B103: 319.2 | C103: 79238.57 | D103: 67178.64 | E103: 60070.21 | F103: 51773.93 | G103: 51790.35 | H103: 45635.94 | I103: 45711.99 | J103: 43835.34 | K103: 46209.2 | Q103: 319.2 | R103: 53989.63 | S103: 16961.73 | T103: 6210.342 | U103: 538.218
B104: 319.4 | C104: 79641.17 | D104: 67633.46 | E104: 60535.4 | F104: 52054.7 | G104: 52147.54 | H104: 45845.18 | I104: 46013.47 | J104: 44069.08 | K104: 46560.65 | Q104: 319.4 | R104: 54401.73 | S104: 17033.61 | T104: 6268.85 | U104: 526.128
B105: 319.6 | C105: 80048.54 | D105: 67974.42 | E105: 60891.63 | F105: 52283.9 | G105: 52462.54 | H105: 46182.76 | I105: 46169.02 | J105: 44263.9 | K105: 46760.53 | Q105: 319.6 | R105: 54544.83 | S105: 17124.47 | T105: 6273.395 | U105: 524.964
B106: 319.8 | C106: 80486.5 | D106: 68331.19 | E106: 61323.46 | F106: 52629.86 | G106: 52876.95 | H106: 46598.25 | I106: 46512.96 | J106: 44559.74 | K106: 47089.8 | Q106: 319.8 | R106: 54947.53 | S106: 17214.93 | T106: 6288.447 | U106: 517.913
B107: 320 | C107: 80817.62 | D107: 68558.78 | E107: 61511.35 | F107: 52846.04 | G107: 53079.86 | H107: 46630.81 | I107: 46640.15 | J107: 44800.28 | K107: 47322.12 | Q107: 320 | R107: 55165.55 | S107: 17323.49 | T107: 6251.722 | U107: 511.566
B108: 320.2 | C108: 81278.18 | D108: 69000.61 | E108: 61717.25 | F108: 53064.96 | G108: 53161.84 | H108: 46712.22 | I108: 46950.92 | J108: 44971.37 | K108: 47487.26 | Q108: 320.2 | R108: 55264.34 | S108: 17313.1 | T108: 6313.873 | U108: 499.925
B109: 320.4 | C109: 81715.05 | D109: 69311.84 | E109: 62057.84 | F109: 53364.88 | G109: 53478.86 | H109: 46971.87 | I109: 46912.52 | J109: 45131.89 | K109: 47652.82 | Q109: 320.4 | R109: 55755.02 | S109: 17409.75 | T109: 6295.488 | U109: 497.35
B110: 320.6 | C110: 81941.77 | D110: 69616.63 | E110: 62240.75 | F110: 53475.36 | G110: 53635.63 | H110: 47080.73 | I110: 47275.17 | J110: 45289.91 | K110: 47860.15 | Q110: 320.6 | R110: 55877.35 | S110: 17475.59 | T110: 6316.347 | U110: 494.196
B111: 320.8 | C111: 82319.5 | D111: 69818.83 | E111: 62560.95 | F111: 53735.51 | G111: 53865.91 | H111: 47379.28 | I111: 47497.54 | J111: 45510.86 | K111: 48022.85 | Q111: 320.8 | R111: 56046.65 | S111: 17571.49 | T111: 6332.841 | U111: 487.493
B112: 321 | C112: 82989.23 | D112: 70336.46 | E112: 63046.16 | F112: 54117.45 | G112: 54218.63 | H112: 47685.19 | I112: 47755.54 | J112: 45760.42 | K112: 48373.39 | Q112: 321 | R112: 56580.18 | S112: 17656.53 | T112: 6312.819 | U112: 474.919
B113: 321.2 | C113: 83439.42 | D113: 70763.13 | E113: 63430.54 | F113: 54368.43 | G113: 54594.71 | H113: 47924.74 | I113: 47978.81 | J113: 46060.64 | K113: 48656.48 | Q113: 321.2 | R113: 56817.03 | S113: 17729.35 | T113: 6390.075 | U113: 470.946
B114: 321.4 | C114: 83873.77 | D114: 71127.44 | E114: 63625.24 | F114: 54638.82 | G114: 54779.62 | H114: 48136.01 | I114: 48217.8 | J114: 46226.12 | K114: 48808.05 | Q114: 321.4 | R114: 57136.35 | S114: 17883.55 | T114: 6352.972 | U114: 466.631
B115: 321.6 | C115: 84309.67 | D115: 71554.19 | E115: 63993.49 | F115: 54917.66 | G115: 55224.95 | H115: 48445.6 | I115: 48475.35 | J115: 46572.55 | K115: 49116.38 | Q115: 321.6 | R115: 57400.69 | S115: 17899.18 | T115: 6449.754 | U115: 462.947
B116: 321.8 | C116: 84705.73 | D116: 71935.07 | E116: 64381.71 | F116: 55188.83 | G116: 55496.22 | H116: 48571.31 | I116: 48761.64 | J116: 46773.87 | K116: 49302.88 | Q116: 321.8 | R116: 57729.6 | S116: 18071.16 | T116: 6459.561 | U116: 456.011
B117: 322 | C117: 85270.11 | D117: 72453.62 | E117: 64747.47 | F117: 55663.47 | G117: 55711.44 | H117: 49006.25 | I117: 49040.14 | J117: 47053.31 | K117: 49680.65 | Q117: 322 | R117: 58055.91 | S117: 18115.74 | T117: 6443.696 | U117: 443.336
B118: 322.2 | C118: 85771.2 | D118: 72703.12 | E118: 65016.23 | F118: 55784.26 | G118: 56047.24 | H118: 49150.34 | I118: 49260.46 | J118: 47282.93 | K118: 49911.37 | Q118: 322.2 | R118: 58508.25 | S118: 18203.97 | T118: 6424.154 | U118: 450.579
B119: 322.4 | C119: 86068.96 | D119: 73068.53 | E119: 65275.44 | F119: 56032.76 | G119: 56079.16 | H119: 49335.12 | I119: 49590.05 | J119: 47435.93 | K119: 49958.34 | Q119: 322.4 | R119: 58703.31 | S119: 18286.66 | T119: 6467.307 | U119: 437.021
B120: 322.6 | C120: 86362.83 | D120: 73190.99 | E120: 65547.02 | F120: 56251.95 | G120: 56477.13 | H120: 49506.14 | I120: 49542.3 | J120: 47508.77 | K120: 50286.67 | Q120: 322.6 | R120: 58769.57 | S120: 18328.51 | T120: 6449.307 | U120: 435.769
B121: 322.8 | C121: 86605.41 | D121: 73449.6 | E121: 65681.4 | F121: 56351.65 | G121: 56627.57 | H121: 49645.96 | I121: 49854.28 | J121: 47660.72 | K121: 50360.18 | Q121: 322.8 | R121: 58949.73 | S121: 18368.38 | T121: 6453.312 | U121: 425.369
B122: 323 | C122: 86864.31 | D122: 73684.09 | E122: 65923.4 | F122: 56554.4 | G122: 56629.36 | H122: 49772.57 | I122: 49812.82 | J122: 47889.05 | K122: 50474.97 | Q122: 323 | R122: 59151.03 | S122: 18480.82 | T122: 6497.559 | U122: 422.656
B123: 323.2 | C123: 87142.36 | D123: 73976.28 | E123: 66182.68 | F123: 56817.1 | G123: 57047.78 | H123: 50000 | I123: 49936.84 | J123: 48027.49 | K123: 50822.12 | Q123: 323.2 | R123: 59612.12 | S123: 18453.78 | T123: 6517.164 | U123: 416.598
B124: 323.4 | C124: 87372.45 | D124: 74153.51 | E124: 66334.2 | F124: 56901.93 | G124: 57348.34 | H124: 50052.66 | I124: 50172.08 | J124: 48012.39 | K124: 50785.65 | Q124: 323.4 | R124: 59613.82 | S124: 18549.44 | T124: 6483.301 | U124: 414.613
B125: 323.6 | C125: 87692.11 | D125: 74400.41 | E125: 66517.01 | F125: 57080.96 | G125: 57258.74 | H125: 50238.31 | I125: 50240.93 | J125: 48202.37 | K125: 50873.73 | Q125: 323.6 | R125: 59863.22 | S125: 18494.12 | T125: 6517.517 | U125: 408.067
B126: 323.8 | C126: 87888.14 | D126: 74635.67 | E126: 66791.61 | F126: 57216.46 | G126: 57308.34 | H126: 50328.77 | I126: 50417.43 | J126: 48355.3 | K126: 51036.25 | Q126: 323.8 | R126: 59934.9 | S126: 18585.68 | T126: 6533.275 | U126: 411.552
B127: 324 | C127: 88378.31 | D127: 74923.12 | E127: 66967.42 | F127: 57503.43 | G127: 57646.51 | H127: 50494.91 | I127: 50707.01 | J127: 48614.91 | K127: 51315.59 | Q127: 324 | R127: 60165.44 | S127: 18655.22 | T127: 6561.682 | U127: 394.998
B128: 324.2 | C128: 88641.51 | D128: 75240.94 | E128: 67290.26 | F128: 57641.69 | G128: 57916.85 | H128: 50607.32 | I128: 50870.67 | J128: 48896.7 | K128: 51558.6 | Q128: 324.2 | R128: 60315.55 | S128: 18716.74 | T128: 6525.178 | U128: 393.314
B129: 324.4 | C129: 88936.74 | D129: 75530.53 | E129: 67529.93 | F129: 57817.77 | G129: 58066.62 | H129: 50784.49 | I129: 51076.84 | J129: 48853.63 | K129: 51625.4 | Q129: 324.4 | R129: 60531.55 | S129: 18836.55 | T129: 6557.725 | U129: 386.516
B130: 324.6 | C130: 89231.26 | D130: 75748.06 | E130: 67737.72 | F130: 58020.53 | G130: 58184.66 | H130: 50894.76 | I130: 51148.02 | J130: 48991.75 | K130: 51823.67 | Q130: 324.6 | R130: 60669.32 | S130: 18852.07 | T130: 6577.544 | U130: 393.273
B131: 324.8 | C131: 89530.84 | D131: 75974.81 | E131: 67862.67 | F131: 58254.85 | G131: 58389.04 | H131: 51106.95 | I131: 51206.92 | J131: 49230.37 | K131: 51972.05 | Q131: 324.8 | R131: 60862.95 | S131: 18877.96 | T131: 6555.988 | U131: 381.001
B132: 325 | C132: 89779.37 | D132: 76126.2 | E132: 68041 | F132: 58272.92 | G132: 58555.26 | H132: 51266.65 | I132: 51402.5 | J132: 49394.22 | K132: 52022.65 | Q132: 325 | R132: 61063.12 | S132: 18962.75 | T132: 6575.309 | U132: 377.907
B133: 325.2 | C133: 90022.53 | D133: 76292.14 | E133: 68225.19 | F133: 58470.56 | G133: 58786.91 | H133: 51485.26 | I133: 51529.13 | J133: 49318.39 | K133: 52195.07 | Q133: 325.2 | R133: 61270.6 | S133: 18994.07 | T133: 6533.291 | U133: 365.473
B134: 325.4 | C134: 90257.2 | D134: 76553.07 | E134: 68372.18 | F134: 58588.68 | G134: 59047.72 | H134: 51476.26 | I134: 51689.28 | J134: 49517.83 | K134: 52295.48 | Q134: 325.4 | R134: 61432.75 | S134: 19036.7 | T134: 6618.509 | U134: 367.651
B135: 325.6 | C135: 90410.52 | D135: 76625.4 | E135: 68424.46 | F135: 58717.65 | G135: 59023.44 | H135: 51588.29 | I135: 51630.92 | J135: 49667.87 | K135: 52394.84 | Q135: 325.6 | R135: 61576.59 | S135: 19007.91 | T135: 6592.011 | U135: 372.09
B136: 325.8 | C136: 90480.58 | D136: 76748.66 | E136: 68570.87 | F136: 58642.4 | G136: 59050.89 | H136: 51613.28 | I136: 51748 | J136: 49575.1 | K136: 52273.77 | Q136: 325.8 | R136: 61569.25 | S136: 19009.52 | T136: 6553.455 | U136: 369.135
B137: 326 | C137: 90591.3 | D137: 76898.3 | E137: 68663.17 | F137: 58768.07 | G137: 58992.08 | H137: 51740.94 | I137: 51773.79 | J137: 49713.28 | K137: 52446.46 | Q137: 326 | R137: 61628.58 | S137: 19096.3 | T137: 6582.192 | U137: 357.141
B138: 326.2 | C138: 90749.38 | D138: 76886.66 | E138: 68737.61 | F138: 58896.78 | G138: 59231.44 | H138: 51729.92 | I138: 51752.81 | J138: 49884.97 | K138: 52529.6 | Q138: 326.2 | R138: 61699.78 | S138: 19121.28 | T138: 6627.811 | U138: 343.439
B139: 326.4 | C139: 90827.7 | D139: 77006.26 | E139: 68847.39 | F139: 58927.01 | G139: 59201.22 | H139: 51880.22 | I139: 52030.97 | J139: 49785.88 | K139: 52565.24 | Q139: 326.4 | R139: 61786.84 | S139: 19122.82 | T139: 6581.333 | U139: 350.658
B140: 326.6 | C140: 90857.47 | D140: 77120.6 | E140: 68846.36 | F140: 59016.34 | G140: 59308.06 | H140: 51935.29 | I140: 52157.76 | J140: 49878.74 | K140: 52511.19 | Q140: 326.6 | R140: 61918.7 | S140: 19047.63 | T140: 6567.683 | U140: 341.493
B141: 326.8 | C141: 90943.39 | D141: 77152.47 | E141: 68838.1 | F141: 59037.33 | G141: 59231.5 | H141: 52036.11 | I141: 51994.77 | J141: 49838.92 | K141: 52730.5 | Q141: 326.8 | R141: 61909.08 | S141: 19109.02 | T141: 6576.431 | U141: 340.472
B142: 327 | C142: 91104.7 | D142: 77242.38 | E142: 69000.86 | F142: 59174.93 | G142: 59488.1 | H142: 51977.1 | I142: 52248.07 | J142: 50002.48 | K142: 52703.25 | Q142: 327 | R142: 62057.76 | S142: 19111.73 | T142: 6599.714 | U142: 341.568
B143: 327.2 | C143: 91210.61 | D143: 77397.75 | E143: 69155.34 | F143: 59298.77 | G143: 59575.27 | H143: 52077.87 | I143: 52097.14 | J143: 50156.87 | K143: 52716.62 | Q143: 327.2 | R143: 62080.2 | S143: 19152.1 | T143: 6555.501 | U143: 335.908
B144: 327.4 | C144: 91314.1 | D144: 77494.64 | E144: 69192.29 | F144: 59240.23 | G144: 59513.29 | H144: 52083.94 | I144: 52278.25 | J144: 50026.34 | K144: 52837.55 | Q144: 327.4 | R144: 62269.29 | S144: 19147.73 | T144: 6589.763 | U144: 320.588
B145: 327.6 | C145: 91423.62 | D145: 77584.23 | E145: 69355.65 | F145: 59338.68 | G145: 59623.06 | H145: 52202.56 | I145: 52322.57 | J145: 50183.94 | K145: 52885.79 | Q145: 327.6 | R145: 62415.66 | S145: 19242.27 | T145: 6574.75 | U145: 328.6
B146: 327.8 | C146: 91544.05 | D146: 77596.66 | E146: 69286 | F146: 59450.88 | G146: 59611.39 | H146: 52165.16 | I146: 52343.34 | J146: 50193.3 | K146: 52975.08 | Q146: 327.8 | R146: 62341.02 | S146: 19243.72 | T146: 6538.62 | U146: 325.067
B147: 328 | C147: 91423.72 | D147: 77640.55 | E147: 69364.18 | F147: 59366.34 | G147: 59727.89 | H147: 52152.62 | I147: 52271.8 | J147: 50240.61 | K147: 52781.33 | Q147: 328 | R147: 62286.35 | S147: 19155.24 | T147: 6535.23 | U147: 308.694
B148: 328.2 | C148: 91629.47 | D148: 77756.63 | E148: 69387.41 | F148: 59471.22 | G148: 59762.55 | H148: 52323.46 | I148: 52327.08 | J148: 50149.96 | K148: 52990.79 | Q148: 328.2 | R148: 62302.6 | S148: 19295.52 | T148: 6510.67 | U148: 297.895
B149: 328.4 | C149: 91640 | D149: 77753.17 | E149: 69407.18 | F149: 59476.01 | G149: 59773.29 | H149: 52261.7 | I149: 52239.03 | J149: 50213.73 | K149: 53098.82 | Q149: 328.4 | R149: 62401.07 | S149: 19219.41 | T149: 6514.998 | U149: 303.426
B150: 328.6 | C150: 91702.05 | D150: 77733.73 | E150: 69522.66 | F150: 59505.03 | G150: 59758.55 | H150: 52287.8 | I150: 52467.24 | J150: 50209.83 | K150: 53100.99 | Q150: 328.6 | R150: 62396.16 | S150: 19198.84 | T150: 6545.931 | U150: 302.522
B151: 328.8 | C151: 91644.38 | D151: 77657.6 | E151: 69352.24 | F151: 59452.39 | G151: 59868.29 | H151: 52217.63 | I151: 52334.7 | J151: 50217.4 | K151: 52912.46 | Q151: 328.8 | R151: 62275.24 | S151: 19186.65 | T151: 6508.907 | U151: 309.012
B152: 329 | C152: 91666.72 | D152: 77693.15 | E152: 69325.41 | F152: 59437.2 | G152: 59868.25 | H152: 52259.99 | I152: 52435.78 | J152: 50062.79 | K152: 52914.95 | Q152: 329 | R152: 62297.48 | S152: 19207.06 | T152: 6549.922 | U152: 292.351
B153: 329.2 | C153: 91565.01 | D153: 77632.81 | E153: 69354.5 | F153: 59463.62 | G153: 59714.43 | H153: 52324.42 | I153: 52376.17 | J153: 50144.35 | K153: 53005.44 | Q153: 329.2 | R153: 62214.96 | S153: 19244.89 | T153: 6510.053 | U153: 299.949
B154: 329.4 | C154: 91563.87 | D154: 77720.51 | E154: 69380.53 | F154: 59395.85 | G154: 59680.1 | H154: 52202 | I154: 52448.54 | J154: 50199.16 | K154: 53052.26 | Q154: 329.4 | R154: 62341.39 | S154: 19159.01 | T154: 6515.672 | U154: 300.213
B155: 329.6 | C155: 91604.41 | D155: 77696.24 | E155: 69429.63 | F155: 59441.13 | G155: 59674.27 | H155: 52209.45 | I155: 52446.2 | J155: 50153.58 | K155: 53013.76 | Q155: 329.6 | R155: 62344.61 | S155: 19169.53 | T155: 6553.52 | U155: 285.91
B156: 329.8 | C156: 91600.59 | D156: 77670.17 | E156: 69230.34 | F156: 59365.45 | G156: 59656.26 | H156: 52339.95 | I156: 52200.37 | J156: 50142.61 | K156: 52910.76 | Q156: 329.8 | R156: 62147.67 | S156: 19152.62 | T156: 6506.356 | U156: 283.67
B157: 330 | C157: 91583.32 | D157: 77584.29 | E157: 69329.59 | F157: 59320.32 | G157: 59723.25 | H157: 52234.83 | I157: 52298.43 | J157: 50253.38 | K157: 52974.52 | Q157: 330 | R157: 62156.78 | S157: 19187.55 | T157: 6533.585 | U157: 281.537
B158: 330.2 | C158: 91571.46 | D158: 77722.95 | E158: 69340.87 | F158: 59325.23 | G158: 59662.77 | H158: 52097.81 | I158: 52322.99 | J158: 50160.41 | K158: 52857.6 | Q158: 330.2 | R158: 62197.91 | S158: 19144.26 | T158: 6524.108 | U158: 287.909
B159: 330.4 | C159: 91392.76 | D159: 77655.18 | E159: 69315.75 | F159: 59411.07 | G159: 59704.18 | H159: 52165.64 | I159: 52239.59 | J159: 50050.49 | K159: 52986.22 | Q159: 330.4 | R159: 62190.05 | S159: 19140.02 | T159: 6493.171 | U159: 274.811
B160: 330.6 | C160: 91434.37 | D160: 77606.97 | E160: 69236.38 | F160: 59286.98 | G160: 59476.11 | H160: 52127.18 | I160: 52256.97 | J160: 50128.01 | K160: 52857.3 | Q160: 330.6 | R160: 62103.68 | S160: 19164.64 | T160: 6482.29 | U160: 276.791
B161: 330.8 | C161: 91343.09 | D161: 77558.28 | E161: 69206.79 | F161: 59222.46 | G161: 59638.08 | H161: 52127.82 | I161: 52256 | J161: 49979.81 | K161: 52766.4 | Q161: 330.8 | R161: 62133.54 | S161: 19125.65 | T161: 6482.127 | U161: 268.767
B162: 331 | C162: 91256.23 | D162: 77463.84 | E162: 69165.01 | F162: 59239.11 | G162: 59741.44 | H162: 51969.59 | I162: 52248.83 | J162: 50151.75 | K162: 52824.8 | Q162: 331 | R162: 61983.11 | S162: 19063.62 | T162: 6457.65 | U162: 268.372
B163: 331.2 | C163: 91176.15 | D163: 77448.06 | E163: 69141.48 | F163: 59184.04 | G163: 59580.3 | H163: 52075.08 | I163: 52200.13 | J163: 49921.76 | K163: 52843.82 | Q163: 331.2 | R163: 62029.32 | S163: 19135.54 | T163: 6429.085 | U163: 261.063
B164: 331.4 | C164: 91158.58 | D164: 77389.39 | E164: 69045.65 | F164: 59111.37 | G164: 59486.15 | H164: 51923.77 | I164: 52007.25 | J164: 50018.86 | K164: 52819.28 | Q164: 331.4 | R164: 62012.33 | S164: 19042.34 | T164: 6410.962 | U164: 256.471
B165: 331.6 | C165: 91130.69 | D165: 77395.46 | E165: 69026.09 | F165: 59011.82 | G165: 59411.76 | H165: 52009.63 | I165: 52034.26 | J165: 49919.7 | K165: 52667.02 | Q165: 331.6 | R165: 61862.41 | S165: 18966.6 | T165: 6476.09 | U165: 256.923
B166: 331.8 | C166: 91047.74 | D166: 77255.96 | E166: 68807.94 | F166: 58961.27 | G166: 59374.6 | H166: 51940.57 | I166: 51955.52 | J166: 49812.22 | K166: 52473.25 | Q166: 331.8 | R166: 61844.71 | S166: 18985.28 | T166: 6436.203 | U166: 258.607
B167: 332 | C167: 90836.71 | D167: 77175.08 | E167: 68787.45 | F167: 58901.92 | G167: 59255.04 | H167: 51742.57 | I167: 51916.97 | J167: 49735.98 | K167: 52439.42 | Q167: 332 | R167: 61816.67 | S167: 18944 | T167: 6392.774 | U167: 252.547
B168: 332.2 | C168: 90847.87 | D168: 77073.75 | E168: 68809.39 | F168: 58914.84 | G168: 59233.52 | H168: 51733.6 | I168: 51825.84 | J168: 49683.77 | K168: 52466.42 | Q168: 332.2 | R168: 61622.55 | S168: 18875.53 | T168: 6416.412 | U168: 254.846
B169: 332.4 | C169: 90663.09 | D169: 77074.34 | E169: 68624.51 | F169: 58762.38 | G169: 59196.18 | H169: 51676.17 | I169: 51774.96 | J169: 49698.14 | K169: 52504.78 | Q169: 332.4 | R169: 61583.95 | S169: 18928.41 | T169: 6410.755 | U169: 243.399
B170: 332.6 | C170: 90506.48 | D170: 76890.2 | E170: 68574.62 | F170: 58723.67 | G170: 59181.92 | H170: 51744.2 | I170: 51856.27 | J170: 49642.28 | K170: 52313.05 | Q170: 332.6 | R170: 61518.2 | S170: 18897.38 | T170: 6384.877 | U170: 246.333
B171: 332.8 | C171: 90537.91 | D171: 76856.42 | E171: 68547.22 | F171: 58618.51 | G171: 59046.18 | H171: 51651.96 | I171: 51657.03 | J171: 49523.25 | K171: 52217.16 | Q171: 332.8 | R171: 61549.79 | S171: 18900.63 | T171: 6373.666 | U171: 243.571
B172: 333 | C172: 90369.87 | D172: 76793.88 | E172: 68502.18 | F172: 58572.31 | G172: 58961.74 | H172: 51494.32 | I172: 51797.01 | J172: 49460.71 | K172: 52153.13 | Q172: 333 | R172: 61369.84 | S172: 18822.27 | T172: 6359.437 | U172: 232.145
B173: 333.2 | C173: 90328.88 | D173: 76580.95 | E173: 68356.04 | F173: 58486.06 | G173: 58894.92 | H173: 51497.82 | I173: 51456.68 | J173: 49432.44 | K173: 52179.36 | Q173: 333.2 | R173: 61352.92 | S173: 18823.88 | T173: 6357.305 | U173: 244.569
B174: 333.4 | C174: 90150.8 | D174: 76556.22 | E174: 68266.97 | F174: 58430.9 | G174: 58813.97 | H174: 51439.17 | I174: 51480.29 | J174: 49337.76 | K174: 52116.04 | Q174: 333.4 | R174: 61184.39 | S174: 18681.35 | T174: 6361.324 | U174: 237.525
B175: 333.6 | C175: 90065.83 | D175: 76405.8 | E175: 68109.81 | F175: 58290.74 | G175: 58634.58 | H175: 51231.1 | I175: 51385.4 | J175: 49232.52 | K175: 52127.04 | Q175: 333.6 | R175: 61108.88 | S175: 18671.51 | T175: 6322.75 | U175: 225.45
B176: 333.8 | C176: 89870.56 | D176: 76299.81 | E176: 68034.98 | F176: 58190.01 | G176: 58677.82 | H176: 51190.94 | I176: 51375 | J176: 49185.69 | K176: 52091.85 | Q176: 333.8 | R176: 61015.4 | S176: 18684.77 | T176: 6321.56 | U176: 236.857
B177: 334 | C177: 89695.68 | D177: 76134.36 | E177: 67989.32 | F177: 58167.74 | G177: 58539.53 | H177: 51149.23 | I177: 51203.75 | J177: 49236.34 | K177: 51811.04 | Q177: 334 | R177: 60906.53 | S177: 18684.69 | T177: 6296.468 | U177: 229.352
B178: 334.2 | C178: 89587.76 | D178: 75986.26 | E178: 67740.41 | F178: 58010.08 | G178: 58394.51 | H178: 50999.21 | I178: 51115.26 | J178: 49032.33 | K178: 51663.68 | Q178: 334.2 | R178: 60707.73 | S178: 18571.42 | T178: 6306.784 | U178: 226.85
B179: 334.4 | C179: 89256.07 | D179: 75728.44 | E179: 67641.37 | F179: 57853.15 | G179: 58274.35 | H179: 50854.64 | I179: 51018.26 | J179: 48986.38 | K179: 51569.27 | Q179: 334.4 | R179: 60596.82 | S179: 18557.49 | T179: 6296.039 | U179: 219.088
B180: 334.6 | C180: 89033.88 | D180: 75607.36 | E180: 67433.2 | F180: 57748.77 | G180: 58075.29 | H180: 50741.9 | I180: 50947.15 | J180: 48886.25 | K180: 51518.46 | Q180: 334.6 | R180: 60454.97 | S180: 18540.08 | T180: 6253.212 | U180: 212.939
B181: 334.8 | C181: 88908.98 | D181: 75439.37 | E181: 67350.21 | F181: 57577.19 | G181: 57924.55 | H181: 50660.33 | I181: 50782.18 | J181: 48687.71 | K181: 51363.86 | Q181: 334.8 | R181: 60214.74 | S181: 18425.45 | T181: 6205.823 | U181: 214.965
B182: 335 | C182: 88532.17 | D182: 75284.32 | E182: 67094.11 | F182: 57456.61 | G182: 57815.01 | H182: 50428.87 | I182: 50545.21 | J182: 48492.55 | K182: 51216.76 | Q182: 335 | R182: 60162.23 | S182: 18472.99 | T182: 6275.45 | U182: 214.338
B183: 335.2 | C183: 88623.05 | D183: 75165.74 | E183: 67049.79 | F183: 57406.45 | G183: 57764.96 | H183: 50504.49 | I183: 50596.1 | J183: 48430.69 | K183: 51187.97 | Q183: 335.2 | R183: 60045.93 | S183: 18437.41 | T183: 6212.372 | U183: 212.79
B184: 335.4 | C184: 88396.82 | D184: 75037.1 | E184: 66849.99 | F184: 57277.38 | G184: 57703.76 | H184: 50335.03 | I184: 50485.34 | J184: 48333.87 | K184: 50984.86 | Q184: 335.4 | R184: 60003.77 | S184: 18314.77 | T184: 6151.52 | U184: 206.773
B185: 335.6 | C185: 88165.84 | D185: 74900.29 | E185: 66749.49 | F185: 57099.11 | G185: 57565.26 | H185: 50078.33 | I185: 50408.63 | J185: 48287.32 | K185: 50956.53 | Q185: 335.6 | R185: 59801.4 | S185: 18322.68 | T185: 6175.939 | U185: 196.235
B186: 335.8 | C186: 87912.86 | D186: 74790.89 | E186: 66600.1 | F186: 57034.28 | G186: 57528.29 | H186: 50150.31 | I186: 50305.96 | J186: 48321.04 | K186: 50898.05 | Q186: 335.8 | R186: 59771.97 | S186: 18286.79 | T186: 6135.791 | U186: 202.539
B187: 336 | C187: 87794.86 | D187: 74550.34 | E187: 66579.08 | F187: 56954 | G187: 57325.56 | H187: 50120.13 | I187: 50141.79 | J187: 48212.02 | K187: 50759.92 | Q187: 336 | R187: 59755.09 | S187: 18161.49 | T187: 6143.01 | U187: 203.754
B188: 336.2 | C188: 87713.03 | D188: 74487.96 | E188: 66444.45 | F188: 56813.6 | G188: 57289.17 | H188: 49943.64 | I188: 50062.4 | J188: 48087.27 | K188: 50719.73 | Q188: 336.2 | R188: 59500.95 | S188: 18122.49 | T188: 6123.085 | U188: 195.179
B189: 336.4 | C189: 87489.26 | D189: 74348.14 | E189: 66243.89 | F189: 56689.21 | G189: 57124.98 | H189: 49782.32 | I189: 49883.32 | J189: 48036.42 | K189: 50593.42 | Q189: 336.4 | R189: 59421.2 | S189: 18103.8 | T189: 6148.81 | U189: 196.905
B190: 336.6 | C190: 87296.2 | D190: 74104.96 | E190: 65996.16 | F190: 56607.37 | G190: 56875.41 | H190: 49812.67 | I190: 49884.99 | J190: 47792.73 | K190: 50381.02 | Q190: 336.6 | R190: 59277.92 | S190: 18034.29 | T190: 6092.043 | U190: 192.246
B191: 336.8 | C191: 87117.95 | D191: 73973.72 | E191: 65953.63 | F191: 56332.97 | G191: 56910.38 | H191: 49651.74 | I191: 49807.86 | J191: 47685.7 | K191: 50297.64 | Q191: 336.8 | R191: 59049.9 | S191: 18099.66 | T191: 6068.739 | U191: 190.644
B192: 337 | C192: 86893.78 | D192: 73748.64 | E192: 65793.56 | F192: 56281.69 | G192: 56590.7 | H192: 49494.46 | I192: 49615.91 | J192: 47753.84 | K192: 50091.32 | Q192: 337 | R192: 58946.04 | S192: 17991.18 | T192: 6056.984 | U192: 186.669
B193: 337.2 | C193: 86583.72 | D193: 73530.71 | E193: 65577.66 | F193: 56093.92 | G193: 56506.52 | H193: 49394.31 | I193: 49411.64 | J193: 47508.7 | K193: 50057.85 | Q193: 337.2 | R193: 58701.46 | S193: 17923.53 | T193: 6040.479 | U193: 193.197
B194: 337.4 | C194: 86314.63 | D194: 73289.41 | E194: 65317.73 | F194: 55882.23 | G194: 56419.32 | H194: 49145.38 | I194: 49419.94 | J194: 47261.68 | K194: 49764.86 | Q194: 337.4 | R194: 58489.05 | S194: 17891.16 | T194: 5944.298 | U194: 192.07
B195: 337.6 | C195: 86003.01 | D195: 73046.03 | E195: 65105.48 | F195: 55718.28 | G195: 56154.08 | H195: 49023.15 | I195: 49090.05 | J195: 47129.97 | K195: 49695.31 | Q195: 337.6 | R195: 58352 | S195: 17833.25 | T195: 5981.339 | U195: 185.615
B196: 337.8 | C196: 85651.71 | D196: 72771.9 | E196: 64912.33 | F196: 55557.98 | G196: 56025.92 | H196: 48855.69 | I196: 48984.9 | J196: 46956.08 | K196: 49476.9 | Q196: 337.8 | R196: 58216.24 | S196: 17700.86 | T196: 5935.603 | U196: 177.623
B197: 338 | C197: 85390.33 | D197: 72565.33 | E197: 64705.04 | F197: 55421.56 | G197: 55853.83 | H197: 48746.12 | I197: 48721.29 | J197: 46762.55 | K197: 49380.45 | Q197: 338 | R197: 58004.31 | S197: 17741.78 | T197: 5953.623 | U197: 177.354
B198: 338.2 | C198: 85316.65 | D198: 72426.4 | E198: 64474.47 | F198: 55220.34 | G198: 55746.47 | H198: 48530.16 | I198: 48812.87 | J198: 46680.54 | K198: 49118.71 | Q198: 338.2 | R198: 57679.27 | S198: 17576.74 | T198: 5926.786 | U198: 175.891
B199: 338.4 | C199: 84966.36 | D199: 72209.19 | E199: 64420.3 | F199: 55036.85 | G199: 55494.37 | H199: 48431.09 | I199: 48577.75 | J199: 46534.69 | K199: 49139.62 | Q199: 338.4 | R199: 57819.72 | S199: 17626.62 | T199: 5884.749 | U199: 178.442
B200: 338.6 | C200: 84692.74 | D200: 71986.39 | E200: 64165.3 | F200: 54989.51 | G200: 55371.59 | H200: 48282.96 | I200: 48357.66 | J200: 46364.56 | K200: 48971.05 | Q200: 338.6 | R200: 57519.44 | S200: 17476.93 | T200: 5924.548 | U200: 177.579
B201: 338.8 | C201: 84416.56 | D201: 71865.35 | E201: 64048.09 | F201: 54850.59 | G201: 55056.83 | H201: 48111.72 | I201: 48315.39 | J201: 46295.13 | K201: 48849.28 | Q201: 338.8 | R201: 57471.95 | S201: 17495.72 | T201: 5879.347 | U201: 176.439
B202: 339 | C202: 84198.49 | D202: 71624.28 | E202: 63765.7 | F202: 54600.87 | G202: 55103.99 | H202: 48126.94 | I202: 48053.74 | J202: 46089.76 | K202: 48715.86 | Q202: 339 | R202: 57136.84 | S202: 17381.71 | T202: 5822.687 | U202: 174.351
... 2305 more rows

Sheet Figure 3
A1: Note: Absolute fluorescence intensity shown.
A2: Figure 3a | AD2: Figure 3c
B4: Substrate conc. (µM) | C4: Prerun | I4: Run | O4: Difference (Prerun - run) | U4: Percentage Quenching | AE4: Wavelength (nm) | AF4: PCO4.Ni+RAP2.12
C5: PCO4 | F5: PCO4.Ni | I5: PCO4+RAP2.12 | L5: PCO4.Ni+RAP2.12 | O5: PCO4+RAP2.12 | R5: PCO4.Ni+RAP2.12 | U5: PCO4+RAP2.12 | X5: PCO4.Ni+RAP2.12 | AF5: PCO4.Ni only | AG5: No O2 | AH5: O2 after bubbling | AI5: O2 (1 min) | AJ5: O2 (2 min)
B6: 0 | C6: =194434 -> 194434 | D6: 194275 | E6: 222388 | F6: 147072 | G6: 162923 | H6: 161746 | I6: 201054 | J6: 200702 | K6: 230368 | L6: 150921 | M6: 172749 | N6: 166899 | O6: =C6-I6 -> -6620 | P6: -6427 | Q6: -7980 | R6: -3849 | S6: -9826 | T6: -5153 | U6: =((O6-$Q$15)/C6)*100 -> 0.200 | V6: 0.300 | W6: -0.437 | X6: =((R6-$T$15)/F6)*100 -> 1.650 | Y6: -2.179 | Z6: 0.694
B7: 10 | C7: 194906 | D7: 193618 | E7: 200600 | F7: 168949 | G7: 164711 | H7: 143494 | I7: 204005 | J7: 199223 | K7: 194027 | L7: 173615 | M7: 163795 | N7: 152026 | O7: -9099 | P7: -5605 | Q7: 6573 | R7: -4666 | S7: 916 | T7: -8532 | U7: -1.072 | V7: 0.725 | W7: 6.771 | X7: 0.953 | Y7: 4.366 | Z7: -1.572 | AE7: 300 | AF7: 21.08 | AG7: 19.8 | AH7: 21 | AI7: 20.03 | AJ7: 20.32
B8: 20 | C8: 196944 | D8: 195694 | E8: 190674 | F8: 170615 | G8: 176904 | H8: 179679 | I8: 202155 | J8: 206140 | K8: 195657 | L8: 173394 | M8: 178355 | N8: 170910 | O8: -5211 | P8: -10446 | Q8: -4983 | R8: -2779 | S8: -1451 | T8: 8769 | U8: 0.913 | V8: -1.756 | W8: 1.063 | X8: 2.050 | Y8: 2.727 | Z8: 8.373 | AE8: 300.5 | AF8: 22.32 | AG8: 21.02 | AH8: 22.27 | AI8: 21.22 | AJ8: 21.55
B9: 40 | C9: 200732 | D9: 200768 | E9: 194743 | F9: 170153 | G9: 176743 | H9: 149665 | I9: 207855 | J9: 204295 | K9: 211254 | L9: 175111 | M9: 172072 | N9: 149418 | O9: -7123 | P9: -3527 | Q9: -16511 | R9: -4958 | S9: 4671 | T9: 247 | U9: -0.057 | V9: 1.734 | W9: -4.879 | X9: 0.775 | Y9: 6.194 | Z9: 4.358 | AE9: 301 | AF9: 24.02 | AG9: 22.66 | AH9: 23.96 | AI9: 22.87 | AJ9: 23.18
B10: 80 | C10: 202788 | D10: 204474 | E10: 197641 | F10: 173173 | G10: 172639 | H10: 180196 | I10: 209926 | J10: 207387 | K10: 213999 | L10: 174810 | M10: 170700 | N10: 169295 | O10: -7138 | P10: -2913 | Q10: -16358 | R10: -1637 | S10: 1939 | T10: 10901 | U10: -0.064 | V10: 2.003 | W10: -4.730 | X10: 2.679 | Y10: 4.758 | Z10: 9.532 | AE10: 301.5 | AF10: 25.52 | AG10: 24.1 | AH10: 25.51 | AI10: 24.33 | AJ10: 24.67
B11: 160 | C11: 202728 | D11: 201973 | E11: 193519 | F11: 172345 | G11: 179845 | H11: 170527 | I11: 204870 | J11: 208155 | K11: 215622 | L11: 161048 | M11: 170428 | N11: 159278 | O11: -2142 | P11: -6182 | Q11: -22103 | R11: 11297 | S11: 9417 | T11: 11249 | U11: 2.401 | V11: 0.409 | W11: -7.800 | X11: 10.196 | Y11: 8.726 | Z11: 10.277 | AE11: 302 | AF11: 26.84 | AG11: 25.32 | AH11: 26.77 | AI11: 25.56 | AJ11: 25.92
B12: 320 | C12: 200289 | D12: 198679 | E12: 189603 | F12: 175444 | G12: 173097 | H12: 164795 | I12: 202983 | J12: 214323 | K12: 193941 | L12: 133807 | M12: 135509 | N12: 131911 | O12: -2694 | P12: -15644 | Q12: -4338 | R12: 41637 | S12: 37588 | T12: 32884 | U12: 2.154 | V12: -4.346 | W12: 1.409 | X12: 27.310 | Y12: 25.341 | Z12: 23.763 | AE12: 302.5 | AF12: 28.28 | AG12: 26.6 | AH12: 28.08 | AI12: 26.85 | AJ12: 27.25
B13: 500 | C13: 200952 | D13: 200557 | E13: 190332 | F13: 168808 | G13: 168422 | H13: 160432 | I13: 203236 | J13: 217230 | K13: 192824 | L13: 116133 | M13: 111591 | N13: 150032 | O13: -2284 | P13: -16673 | Q13: -2492 | R13: 52675 | S13: 56831 | T13: 10400 | U13: 2.351 | V13: -4.819 | W13: 2.373 | X13: 34.922 | Y13: 37.470 | Z13: 10.394 | AE13: 303 | AF13: 29.8 | AG13: 28.08 | AH13: 29.68 | AI13: 28.36 | AJ13: 28.75
AE14: 303.5 | AF14: 31.82 | AG14: 29.95 | AH14: 31.64 | AI14: 30.26 | AJ14: 30.67
O15: Average zero control = | Q15: =AVERAGE(O6:Q6) -> -7009.000 | R15: Average zero control = | T15: =AVERAGE(R6:T6) -> -6276.000 | AE15: 304 | AF15: 33.75 | AG15: 31.78 | AH15: 33.56 | AI15: 32.12 | AJ15: 32.54
AE16: 304.5 | AF16: 35.76 | AG16: 33.69 | AH16: 35.6 | AI16: 34.07 | AJ16: 34.5
AE17: 305 | AF17: 37.24 | AG17: 35.1 | AH17: 36.99 | AI17: 35.45 | AJ17: 35.88
A18: Figure 3b | AE18: 305.5 | AF18: 38.96 | AG18: 36.63 | AH18: 38.61 | AI18: 36.99 | AJ18: 37.46
AE19: 306 | AF19: 40.57 | AG19: 38.19 | AH19: 40.27 | AI19: 38.56 | AJ19: 39.06
B20: Substrate conc. (µM) | C20: Prerun | F20: Run | I20: Difference (Prerun - run) | L20: Percentage Quenching | AE20: 306.5 | AF20: 42.47 | AG20: 39.92 | AH20: 42.09 | AI20: 40.38 | AJ20: 40.82
C21: PCO4.Ni | F21: PCO4.Ni+ vCPH | I21: PCO4.Ni+ vCPH | L21: PCO4.Ni+ vCPH | AE21: 307 | AF21: 44.66 | AG21: 41.96 | AH21: 44.23 | AI21: 42.45 | AJ21: 42.94
B22: 0 | C22: 210608 | D22: 198003 | E22: 217903 | F22: 219333 | G22: 208057 | H22: 225378 | I22: =C22-F22 -> -8725 | J22: -10054 | K22: -7475 | L22: =((I22-$K$29)/C22)*100 -> 0.013 | M22: -0.658 | N22: 0.586 | AE22: 307.5 | AF22: 46.55 | AG22: 43.74 | AH22: 46.08 | AI22: 44.24 | AJ22: 44.77
B23: 40 | C23: 215891 | D23: 211905 | E23: 221811 | F23: 222769 | G23: 218014 | H23: 231659 | I23: -6878 | J23: -6109 | K23: -9848 | L23: 0.868 | M23: 1.247 | N23: -0.494 | AE23: 308 | AF23: 48.17 | AG23: 45.26 | AH23: 47.69 | AI23: 45.82 | AJ23: 46.31
B24: 80 | C24: 220368 | D24: 220117 | E24: 225114 | F24: 227945 | G24: 232559 | H24: 233540 | I24: -7577 | J24: -12442 | K24: -8426 | L24: 0.533 | M24: -1.677 | N24: 0.145 | AE24: 308.5 | AF24: 49.71 | AG24: 46.61 | AH24: 49.15 | AI24: 47.19 | AJ24: 47.71
B25: 160 | C25: 222520 | D25: 220363 | E25: 225861 | F25: 231871 | G25: 225649 | H25: 237627 | I25: -9351 | J25: -5286 | K25: -11766 | L25: -0.269 | M25: 1.573 | N25: -1.335 | AE25: 309 | AF25: 51.66 | AG25: 48.4 | AH25: 50.98 | AI25: 49.01 | AJ25: 49.53
B26: 320 | C26: 225338 | D26: 224775 | E26: 226338 | F26: 225928 | G26: 224844 | H26: 234096 | I26: -590 | J26: -69 | K26: -7758 | L26: 3.622 | M26: 3.863 | N26: 0.439 | AE26: 309.5 | AF26: 53.78 | AG26: 50.38 | AH26: 53.07 | AI26: 51.02 | AJ26: 51.64
B27: 500 | C27: 224540 | D27: 223853 | E27: 226104 | F27: 224056 | G27: 227816 | H27: 227539 | I27: 484 | J27: -3963 | K27: -1435 | L27: 4.113 | M27: 2.139 | N27: 3.236 | AE27: 310 | AF27: 56.1 | AG27: 52.59 | AH27: 55.38 | AI27: 53.29 | AJ27: 53.88
AE28: 310.5 | AF28: 57.99 | AG28: 54.4 | AH28: 57.3 | AI28: 55.11 | AJ28: 55.71
I29: Average zero control = | K29: =AVERAGE(I22:K22) -> -8751.333333 | AE29: 311 | AF29: 59.44 | AG29: 55.73 | AH29: 58.73 | AI29: 56.45 | AJ29: 57.1
AE30: 311.5 | AF30: 61.12 | AG30: 57.21 | AH30: 60.24 | AI30: 58.01 | AJ30: 58.65
AE31: 312 | AF31: 62.69 | AG31: 58.7 | AH31: 61.81 | AI31: 59.5 | AJ31: 60.15
AE32: 312.5 | AF32: 64.83 | AG32: 60.68 | AH32: 63.92 | AI32: 61.51 | AJ32: 62.19
AE33: 313 | AF33: 66.7 | AG33: 62.44 | AH33: 65.72 | AI33: 63.38 | AJ33: 63.99
A34: Figure 3d | AE34: 313.5 | AF34: 68.67 | AG34: 64.28 | AH34: 67.65 | AI34: 65.18 | AJ34: 65.91
AE35: 314 | AF35: 69.9 | AG35: 65.5 | AH35: 68.91 | AI35: 66.43 | AJ35: 67.1
B36: Substrate conc. (µM) | C36: Prerun | I36: Run | O36: Difference (Prerun - run) | U36: Relative Fluorescence intensity (blank corrected) | AE36: 314.5 | AF36: 71.3 | AG36: 66.62 | AH36: 70.15 | AI36: 67.65 | AJ36: 68.36
C37: PCO4.Ni | F37: BSA | I37: PCO4.Ni+RAP2.12 | L37: BSA+RAP2.12 | O37: PCO4.Ni+RAP2.12 | R37: BSA+RAP2.12 | U37: PCO4.Ni+RAP2.12 | X37: BSA+RAP2.12 | AE37: 315 | AF37: 72.52 | AG37: 67.79 | AH37: 71.38 | AI37: 68.8 | AJ37: 69.52
B38: 50 | C38: 172331 | D38: 177554 | E38: 176361 | F38: 81298 | G38: 83203 | H38: 83685 | I38: 180176 | J38: 178272 | K38: 181861 | L38: 84040 | M38: 89235 | N38: 87341 | O38: =I38-C38 -> 7845 | P38: =J38-D38 -> 718 | Q38: 5500 | R38: =L38-F38 -> 2742 | S38: 6032 | T38: 3656 | U38: =O38-$Q$56 -> 1188.7 | V38: =P38-$Q$56 -> -5938.3 | W38: =Q38-$Q$56 -> -1156.3 | X38: =R38-$T$56 -> -207.8 | Y38: =S38-$T$56 -> 3082.2 | Z38: 706.2 | AE38: 315.5 | AF38: 74.4 | AG38: 69.52 | AH38: 73.19 | AI38: 70.59 | AJ38: 71.32
B39: 100 | C39: 173521 | D39: 180978 | E39: 186263 | F39: 82956 | G39: 80679 | H39: 81561 | I39: 176840 | J39: 181340 | K39: 177469 | L39: 86617 | M39: 84011 | N39: 86177 | O39: =I39-C39 -> 3319 | P39: 362 | Q39: -8794 | R39: 3661 | S39: 3332 | T39: 4616 | U39: -3337.3 | V39: =P39-$Q$56 -> -6294.3 | W39: =Q39-$Q$56 -> -15450.3 | X39: =R39-$T$56 -> 711.2 | Y39: =S39-$T$56 -> 382.2 | Z39: =T39-$T$56 -> 1666.2 | AE39: 316 | AF39: 76.2 | AG39: 71.19 | AH39: 74.92 | AI39: 72.2 | AJ39: 73.03
B40: 200 | C40: 177890 | D40: 179067 | E40: 179309 | F40: 83681 | G40: 83017 | H40: 84551 | I40: 159645 | J40: 158001 | K40: 157150 | L40: 87172 | M40: 87135 | N40: 88447 | O40: -18245 | P40: -21066 | Q40: -22159 | R40: 3491 | S40: 4118 | T40: 3896 | U40: -24901.3 | V40: -27722.3 | W40: -28815.3 | X40: 541.2 | Y40: 1168.2 | Z40: 946.2 | AE40: 316.5 | AF40: 77.86 | AG40: 72.72 | AH40: 76.59 | AI40: 73.87 | AJ40: 74.69
B41: 300 | C41: 179461 | D41: 179211 | E41: 179278 | F41: 83666 | G41: 83341 | H41: 83081 | I41: 138936 | J41: 144309 | K41: 142945 | L41: 89345 | M41: 88671 | N41: 88978 | O41: -40525 | P41: -34902 | Q41: -36333 | R41: 5679 | S41: 5330 | T41: 5897 | U41: -47181.3 | V41: -41558.3 | W41: -42989.3 | X41: 2729.2 | Y41: 2380.2 | Z41: 2947.2 | AE41: 317 | AF41: 79.51 | AG41: 74.23 | AH41: 78.13 | AI41: 75.4 | AJ41: 76.18
B42: 400 | C42: 175523 | D42: 178807 | E42: 179710 | F42: 81444 | G42: 81823 | H42: 84019 | I42: 134076 | J42: 128919 | K42: 135281 | L42: 87076 | M42: 87335 | N42: 89690 | O42: -41447 | P42: -49888 | Q42: -44429 | R42: 5632 | S42: 5512 | T42: 5671 | U42: -48103.3 | V42: -56544.3 | W42: -51085.3 | X42: 2682.2 | Y42: 2562.2 | Z42: 2721.2 | AE42: 317.5 | AF42: 80.7 | AG42: 75.27 | AH42: 79.24 | AI42: 76.41 | AJ42: 77.27
B43: 500 | C43: 173342 | D43: 179903 | E43: 179192 | F43: 83626 | G43: 82845 | H43: 84919 | I43: 121982 | J43: 128179 | K43: 129654 | L43: 89365 | M43: 87985 | N43: 91001 | O43: -51360 | P43: -51724 | Q43: -49538 | R43: 5739 | S43: 5140 | T43: 6082 | U43: -58016.3 | V43: -58380.3 | W43: -56194.3 | X43: 2789.2 | Y43: 2190.2 | Z43: 3132.2 | AE43: 318 | AF43: 81.92 | AG43: 76.47 | AH43: 80.49 | AI43: 77.65 | AJ43: 78.5
B44: 600 | C44: 172357 | D44: 177416 | E44: 175489 | F44: 83455 | G44: 89283 | H44: 81910 | I44: 118778 | J44: 122937 | K44: 122360 | L44: 89847 | M44: 91861 | N44: 88252 | O44: -53579 | P44: -54479 | Q44: -53129 | R44: 6392 | S44: 2578 | T44: 6342 | U44: -60235.3 | V44: -61135.3 | W44: -59785.3 | X44: 3442.2 | Y44: -371.8 | Z44: 3392.2 | AE44: 318.5 | AF44: 83.36 | AG44: 77.73 | AH44: 81.91 | AI44: 78.99 | AJ44: 79.84
B45: 750 | C45: 174854 | D45: 176632 | E45: 176308 | F45: 83253 | G45: 88193 | H45: 82994 | I45: 116648 | J45: 120068 | K45: 122629 | L45: 91476 | M45: 98358 | N45: 93498 | O45: -58206 | P45: -56564 | Q45: -53679 | R45: 8223 | S45: 10165 | T45: 10504 | U45: -64862.3 | V45: -63220.3 | W45: -60335.3 | X45: 5273.2 | Y45: 7215.2 | Z45: 7554.2 | AE45: 319 | AF45: 84.96 | AG45: 79.33 | AH45: 83.45 | AI45: 80.54 | AJ45: 81.42
C46: Prerun | I46: Run | O46: Difference (Run -Pre-run) | AE46: 319.5 | AF46: 86.48 | AG46: 80.68 | AH46: 84.9 | AI46: 81.97 | AJ46: 82.81
B47: Buffer controls | C47: PCO4.Ni | F47: BSA | I47: PCO4.Ni+ Buffer | L47: BSA+ Buffer | O47: PCO4.Ni+ Buffer | R47: BSA+ Buffer | AE47: 320 | AF47: 87.77 | AG47: 81.89 | AH47: 86.17 | AI47: 83.18 | AJ47: 84.11
C48: 178330 | D48: 175176 | E48: 174901 | F48: 83138 | G48: 83076 | H48: 85604 | I48: 180522 | J48: 182644 | K48: 182417 | L48: 86779 | M48: 85632 | N48: 87719 | O48: =I48-C48 -> 2192 | P48: =J48-D48 -> 7468 | Q48: 7516 | R48: =L48-F48 -> 3641 | S48: 2556 | T48: 2115 | AE48: 320.5 | AF48: 88.81 | AG48: 82.79 | AH48: 87.06 | AI48: 84.12 | AJ48: 84.99
C49: 173435 | D49: 200220 | E49: 175197 | F49: 84171 | G49: 85129 | H49: 84582 | I49: 183240 | J49: 198788 | K49: 184024 | L49: 88194 | M49: 87072 | N49: 87221 | O49: =I49-C49 -> 9805 | P49: -1432 | Q49: 8827 | R49: 4023 | S49: 1943 | T49: 2639 | AE49: 321 | AF49: 89.86 | AG49: 83.74 | AH49: 88.13 | AI49: 84.99 | AJ49: 85.93
C50: 175463 | D50: 174902 | E50: 174007 | F50: 85074 | G50: 85373 | H50: 85629 | I50: 179511 | J50: 182273 | K50: 180933 | L50: 88354 | M50: 87198 | N50: 88322 | O50: 4048 | P50: 7371 | Q50: 6926 | R50: 3280 | S50: 1825 | T50: 2693 | AE50: 321.5 | AF50: 90.99 | AG50: 84.76 | AH50: 89.21 | AI50: 86.1 | AJ50: 87.07
C51: 181519 | D51: 176058 | E51: 171571 | F51: 86288 | G51: 84089 | H51: 85352 | I51: 186364 | J51: 183294 | K51: 177909 | L51: 88508 | M51: 87148 | N51: 88524 | O51: 4845 | P51: 7236 | Q51: 6338 | R51: 2220 | S51: 3059 | T51: 3172 | AE51: 322 | AF51: 92.26 | AG51: 86.04 | AH51: 90.53 | AI51: 87.33 | AJ51: 88.27
C52: 178783 | D52: 175485 | E52: 173913 | F52: 84993 | G52: 85992 | H52: 85851 | I52: 182299 | J52: 183390 | K52: 177990 | L52: 88108 | M52: 88406 | N52: 88683 | O52: 3516 | P52: 7905 | Q52: 4077 | R52: 3115 | S52: 2414 | T52: 2832 | AE52: 322.5 | AF52: 93.37 | AG52: 87 | AH52: 91.46 | AI52: 88.29 | AJ52: 89.3
C53: 176637 | D53: 177434 | E53: 173740 | F53: 85638 | G53: 85132 | H53: 86800 | I53: 182200 | J53: 184634 | K53: 181164 | L53: 88022 | M53: 88184 | N53: 89059 | O53: 5563 | P53: 7200 | Q53: 7424 | R53: 2384 | S53: 3052 | T53: 2259 | AE53: 323 | AF53: 94.25 | AG53: 87.73 | AH53: 92.34 | AI53: 89.2 | AJ53: 90.13
C54: 185180 | D54: 173397 | E54: 172678 | F54: 86126 | G54: 87376 | H54: 85454 | I54: 185004 | J54: 181547 | K54: 184328 | L54: 89876 | M54: 90770 | N54: 88605 | O54: -176 | P54: 8150 | Q54: 11650 | R54: 3750 | S54: 3394 | T54: 3151 | AE54: 323.5 | AF54: 95.03 | AG54: 88.39 | AH54: 92.99 | AI54: 89.87 | AJ54: 90.8
C55: 176942 | D55: 172104 | E55: 171027 | F55: 82022 | G55: 83598 | H55: 86221 | I55: 187737 | J55: 181723 | K55: 183916 | L55: 87073 | M55: 87300 | N55: 88746 | O55: 10795 | P55: 9619 | Q55: 12889 | R55: 5051 | S55: 3702 | T55: 2525 | AE55: 324 | AF55: 95.73 | AG55: 89.13 | AH55: 93.77 | AI55: 90.49 | AJ55: 91.54
O56: Average zero control = | Q56: =AVERAGE(O48:Q55) -> 6656.333333 | R56: Average zero control = | T56: =AVERAGE(R48:T55) -> 2949.791667 | AE56: 324.5 | AF56: 96.46 | AG56: 89.79 | AH56: 94.43 | AI56: 91.22 | AJ56: 92.21
AE57: 325 | AF57: 97.16 | AG57: 90.39 | AH57: 95.12 | AI57: 91.93 | AJ57: 92.92
AE58: 325.5 | AF58: 97.86 | AG58: 91.13 | AH58: 95.89 | AI58: 92.51 | AJ58: 93.6
AE59: 326 | AF59: 98.34 | AG59: 91.51 | AH59: 96.25 | AI59: 92.95 | AJ59: 94.04
AE60: 326.5 | AF60: 98.78 | AG60: 91.86 | AH60: 96.59 | AI60: 93.39 | AJ60: 94.4
AE61: 327 | AF61: 99.01 | AG61: 92.04 | AH61: 96.88 | AI61: 93.59 | AJ61: 94.61
AE62: 327.5 | AF62: 99.35 | AG62: 92.4 | AH62: 97.15 | AI62: 93.89 | AJ62: 94.96
AE63: 328 | AF63: 99.5 | AG63: 92.48 | AH63: 97.32 | AI63: 94.08 | AJ63: 95.13
AE64: 328.5 | AF64: 99.82 | AG64: 92.7 | AH64: 97.58 | AI64: 94.34 | AJ64: 95.37
AE65: 329 | AF65: 99.89 | AG65: 92.86 | AH65: 97.58 | AI65: 94.42 | AJ65: 95.47
AE66: 329.5 | AF66: 100.01 | AG66: 92.82 | AH66: 97.71 | AI66: 94.43 | AJ66: 95.51
AE67: 330 | AF67: 100.05 | AG67: 92.83 | AH67: 97.64 | AI67: 94.41 | AJ67: 95.53
AE68: 330.5 | AF68: 100 | AG68: 92.77 | AH68: 97.59 | AI68: 94.38 | AJ68: 95.46
AE69: 331 | AF69: 99.89 | AG69: 92.73 | AH69: 97.55 | AI69: 94.33 | AJ69: 95.4
AE70: 331.5 | AF70: 99.83 | AG70: 92.6 | AH70: 97.39 | AI70: 94.2 | AJ70: 95.32
AE71: 332 | AF71: 99.59 | AG71: 92.37 | AH71: 97.21 | AI71: 93.97 | AJ71: 95.04
AE72: 332.5 | AF72: 99.37 | AG72: 92.19 | AH72: 97.01 | AI72: 93.8 | AJ72: 94.85
AE73: 333 | AF73: 99.19 | AG73: 91.96 | AH73: 96.78 | AI73: 93.56 | AJ73: 94.66
AE74: 333.5 | AF74: 98.85 | AG74: 91.65 | AH74: 96.49 | AI74: 93.31 | AJ74: 94.36
AE75: 334 | AF75: 98.53 | AG75: 91.38 | AH75: 96.08 | AI75: 92.97 | AJ75: 94.05
AE76: 334.5 | AF76: 98.01 | AG76: 90.87 | AH76: 95.67 | AI76: 92.47 | AJ76: 93.58
AE77: 335 | AF77: 97.49 | AG77: 90.4 | AH77: 95.08 | AI77: 91.94 | AJ77: 93.05
AE78: 335.5 | AF78: 97.1 | AG78: 90.02 | AH78: 94.68 | AI78: 91.52 | AJ78: 92.61
AE79: 336 | AF79: 96.68 | AG79: 89.59 | AH79: 94.27 | AI79: 91.17 | AJ79: 92.21
AE80: 336.5 | AF80: 96.18 | AG80: 89.15 | AH80: 93.77 | AI80: 90.67 | AJ80: 91.79
AE81: 337 | AF81: 95.64 | AG81: 88.62 | AH81: 93.27 | AI81: 90.21 | AJ81: 91.25
AE82: 337.5 | AF82: 94.91 | AG82: 87.89 | AH82: 92.57 | AI82: 89.45 | AJ82: 90.54
AE83: 338 | AF83: 94.2 | AG83: 87.18 | AH83: 91.81 | AI83: 88.8 | AJ83: 89.81
AE84: 338.5 | AF84: 93.53 | AG84: 86.63 | AH84: 91.15 | AI84: 88.13 | AJ84: 89.23
AE85: 339 | AF85: 92.97 | AG85: 86.07 | AH85: 90.56 | AI85: 87.6 | AJ85: 88.6
AE86: 339.5 | AF86: 92.23 | AG86: 85.33 | AH86: 89.82 | AI86: 86.83 | AJ86: 87.87
AE87: 340 | AF87: 91.42 | AG87: 84.59 | AH87: 89.04 | AI87: 86.04 | AJ87: 87.06
AE88: 340.5 | AF88: 90.41 | AG88: 83.67 | AH88: 87.95 | AI88: 85.14 | AJ88: 86.12
AE89: 341 | AF89: 89.45 | AG89: 82.75 | AH89: 87.04 | AI89: 84.21 | AJ89: 85.22
AE90: 341.5 | AF90: 88.61 | AG90: 81.97 | AH90: 86.23 | AI90: 83.43 | AJ90: 84.4
AE91: 342 | AF91: 87.83 | AG91: 81.27 | AH91: 85.5 | AI91: 82.66 | AJ91: 83.67
AE92: 342.5 | AF92: 86.99 | AG92: 80.5 | AH92: 84.72 | AI92: 81.93 | AJ92: 82.87
AE93: 343 | AF93: 86.09 | AG93: 79.63 | AH93: 83.77 | AI93: 81.03 | AJ93: 81.98
AE94: 343.5 | AF94: 84.95 | AG94: 78.59 | AH94: 82.63 | AI94: 79.98 | AJ94: 80.89
AE95: 344 | AF95: 83.9 | AG95: 77.59 | AH95: 81.66 | AI95: 78.95 | AJ95: 79.93
AE96: 344.5 | AF96: 83.02 | AG96: 76.7 | AH96: 80.75 | AI96: 78.06 | AJ96: 79.01
AE97: 345 | AF97: 82.2 | AG97: 76 | AH97: 79.95 | AI97: 77.34 | AJ97: 78.27
AE98: 345.5 | AF98: 81.31 | AG98: 75.12 | AH98: 79.06 | AI98: 76.44 | AJ98: 77.39
AE99: 346 | AF99: 80.21 | AG99: 74.16 | AH99: 78.03 | AI99: 75.47 | AJ99: 76.39
AE100: 346.5 | AF100: 78.97 | AG100: 72.95 | AH100: 76.75 | AI100: 74.26 | AJ100: 75.13
AE101: 347 | AF101: 77.77 | AG101: 71.79 | AH101: 75.57 | AI101: 73.11 | AJ101: 73.97
AE102: 347.5 | AF102: 76.61 | AG102: 70.75 | AH102: 74.47 | AI102: 72.05 | AJ102: 72.93
AE103: 348 | AF103: 75.64 | AG103: 69.85 | AH103: 73.56 | AI103: 71.17 | AJ103: 71.99
AE104: 348.5 | AF104: 74.62 | AG104: 68.9 | AH104: 72.52 | AI104: 70.19 | AJ104: 71.01
AE105: 349 | AF105: 73.53 | AG105: 67.87 | AH105: 71.43 | AI105: 69.16 | AJ105: 69.93
AE106: 349.5 | AF106: 72.19 | AG106: 66.68 | AH106: 70.11 | AI106: 67.86 | AJ106: 68.7
AE107: 350 | AF107: 70.97 | AG107: 65.5 | AH107: 68.92 | AI107: 66.67 | AJ107: 67.5
AE108: 350.5 | AF108: 69.85 | AG108: 64.44 | AH108: 67.83 | AI108: 65.6 | AJ108: 66.4
AE109: 351 | AF109: 68.9 | AG109: 63.57 | AH109: 66.92 | AI109: 64.75 | AJ109: 65.53
AE110: 351.5 | AF110: 67.89 | AG110: 62.67 | AH110: 65.95 | AI110: 63.84 | AJ110: 64.6
AE111: 352 | AF111: 66.85 | AG111: 61.72 | AH111: 64.86 | AI111: 62.79 | AJ111: 63.58
AE112: 352.5 | AF112: 65.55 | AG112: 60.48 | AH112: 63.68 | AI112: 61.59 | AJ112: 62.32
AE113: 353 | AF113: 64.36 | AG113: 59.41 | AH113: 62.5 | AI113: 60.45 | AJ113: 61.26
AE114: 353.5 | AF114: 63.28 | AG114: 58.37 | AH114: 61.47 | AI114: 59.45 | AJ114: 60.16
AE115: 354 | AF115: 62.32 | AG115: 57.53 | AH115: 60.55 | AI115: 58.56 | AJ115: 59.24
AE116: 354.5 | AF116: 61.37 | AG116: 56.66 | AH116: 59.63 | AI116: 57.69 | AJ116: 58.36
AE117: 355 | AF117: 60.37 | AG117: 55.67 | AH117: 58.64 | AI117: 56.71 | AJ117: 57.38
AE118: 355.5 | AF118: 59.02 | AG118: 54.5 | AH118: 57.39 | AI118: 55.5 | AJ118: 56.13
AE119: 356 | AF119: 57.82 | AG119: 53.32 | AH119: 56.15 | AI119: 54.29 | AJ119: 54.95
AE120: 356.5 | AF120: 56.85 | AG120: 52.41 | AH120: 55.18 | AI120: 53.34 | AJ120: 54.01
AE121: 357 | AF121: 55.87 | AG121: 51.54 | AH121: 54.26 | AI121: 52.47 | AJ121: 53.11
AE122: 357.5 | AF122: 55 | AG122: 50.77 | AH122: 53.36 | AI122: 51.67 | AJ122: 52.23
AE123: 358 | AF123: 53.92 | AG123: 49.69 | AH123: 52.3 | AI123: 50.61 | AJ123: 51.22
AE124: 358.5 | AF124: 52.83 | AG124: 48.68 | AH124: 51.26 | AI124: 49.59 | AJ124: 50.21
AE125: 359 | AF125: 51.7 | AG125: 47.64 | AH125: 50.17 | AI125: 48.52 | AJ125: 49.12
AE126: 359.5 | AF126: 50.74 | AG126: 46.75 | AH126: 49.22 | AI126: 47.59 | AJ126: 48.16
AE127: 360 | AF127: 49.87 | AG127: 45.92 | AH127: 48.38 | AI127: 46.77 | AJ127: 47.31
AE128: 360.5 | AF128: 49.08 | AG128: 45.19 | AH128: 47.61 | AI128: 46.02 | AJ128: 46.58
AE129: 361 | AF129: 48.08 | AG129: 44.31 | AH129: 46.63 | AI129: 45.1 | AJ129: 45.64
AE130: 361.5 | AF130: 47 | AG130: 43.31 | AH130: 45.6 | AI130: 44.11 | AJ130: 44.64
AE131: 362 | AF131: 45.85 | AG131: 42.25 | AH131: 44.49 | AI131: 43.01 | AJ131: 43.55
AE132: 362.5 | AF132: 44.88 | AG132: 41.34 | AH132: 43.49 | AI132: 42.07 | AJ132: 42.61
AE133: 363 | AF133: 44 | AG133: 40.52 | AH133: 42.63 | AI133: 41.26 | AJ133: 41.76
AE134: 363.5 | AF134: 43.14 | AG134: 39.76 | AH134: 41.85 | AI134: 40.45 | AJ134: 40.99
AE135: 364 | AF135: 42.28 | AG135: 38.94 | AH135: 41.03 | AI135: 39.66 | AJ135: 40.15
AE136: 364.5 | AF136: 41.28 | AG136: 38.02 | AH136: 40.04 | AI136: 38.7 | AJ136: 39.19
AE137: 365 | AF137: 40.4 | AG137: 37.24 | AH137: 39.19 | AI137: 37.89 | AJ137: 38.35
AE138: 365.5 | AF138: 39.36 | AG138: 36.26 | AH138: 38.19 | AI138: 36.9 | AJ138: 37.34
AE139: 366 | AF139: 38.66 | AG139: 35.57 | AH139: 37.48 | AI139: 36.22 | AJ139: 36.67
AE140: 366.5 | AF140: 37.88 | AG140: 34.91 | AH140: 36.75 | AI140: 35.54 | AJ140: 35.96
AE141: 367 | AF141: 37.18 | AG141: 34.24 | AH141: 36.04 | AI141: 34.86 | AJ141: 35.3
AE142: 367.5 | AF142: 36.28 | AG142: 33.41 | AH142: 35.17 | AI142: 34.02 | AJ142: 34.41
AE143: 368 | AF143: 35.45 | AG143: 32.66 | AH143: 34.38 | AI143: 33.23 | AJ143: 33.63
AE144: 368.5 | AF144: 34.59 | AG144: 31.82 | AH144: 33.53 | AI144: 32.4 | AJ144: 32.84
AE145: 369 | AF145: 33.84 | AG145: 31.19 | AH145: 32.87 | AI145: 31.76 | AJ145: 32.16
AE146: 369.5 | AF146: 33.22 | AG146: 30.62 | AH146: 32.23 | AI146: 31.18 | AJ146: 31.54
AE147: 370 | AF147: 32.47 | AG147: 29.9 | AH147: 31.5 | AI147: 30.45 | AJ147: 30.82
AE148: 370.5 | AF148: 31.64 | AG148: 29.13 | AH148: 30.69 | AI148: 29.68 | AJ148: 30.03
AE149: 371 | AF149: 30.78 | AG149: 28.34 | AH149: 29.85 | AI149: 28.86 | AJ149: 29.22
AE150: 371.5 | AF150: 30.05 | AG150: 27.66 | AH150: 29.12 | AI150: 28.15 | AJ150: 28.52
AE151: 372 | AF151: 29.41 | AG151: 27.09 | AH151: 28.5 | AI151: 27.54 | AJ151: 27.91
AE152: 372.5 | AF152: 28.81 | AG152: 26.54 | AH152: 27.95 | AI152: 27.03 | AJ152: 27.36
AE153: 373 | AF153: 28.16 | AG153: 25.92 | AH153: 27.32 | AI153: 26.39 | AJ153: 26.71
AE154: 373.5 | AF154: 27.35 | AG154: 25.18 | AH154: 26.54 | AI154: 25.65 | AJ154: 25.97
AE155: 374 | AF155: 26.62 | AG155: 24.54 | AH155: 25.85 | AI155: 24.97 | AJ155: 25.29
AE156: 374.5 | AF156: 25.94 | AG156: 23.9 | AH156: 25.18 | AI156: 24.32 | AJ156: 24.64
AE157: 375 | AF157: 25.45 | AG157: 23.42 | AH157: 24.67 | AI157: 23.86 | AJ157: 24.15
AE158: 375.5 | AF158: 24.89 | AG158: 22.94 | AH158: 24.19 | AI158: 23.37 | AJ158: 23.65
AE159: 376 | AF159: 24.39 | AG159: 22.45 | AH159: 23.68 | AI159: 22.91 | AJ159: 23.15
AE160: 376.5 | AF160: 23.71 | AG160: 21.86 | AH160: 23.04 | AI160: 22.26 | AJ160: 22.52
AE161: 377 | AF161: 23.01 | AG161: 21.19 | AH161: 22.36 | AI161: 21.6 | AJ161: 21.87
AE162: 377.5 | AF162: 22.4 | AG162: 20.63 | AH162: 21.75 | AI162: 21.01 | AJ162: 21.26
AE163: 378 | AF163: 21.86 | AG163: 20.14 | AH163: 21.23 | AI163: 20.51 | AJ163: 20.76
AE164: 378.5 | AF164: 21.44 | AG164: 19.77 | AH164: 20.83 | AI164: 20.11 | AJ164: 20.36
AE165: 379 | AF165: 20.96 | AG165: 19.32 | AH165: 20.36 | AI165: 19.65 | AJ165: 19.9
AE166: 379.5 | AF166: 20.41 | AG166: 18.82 | AH166: 19.85 | AI166: 19.17 | AJ166: 19.4
AE167: 380 | AF167: 19.84 | AG167: 18.29 | AH167: 19.27 | AI167: 18.62 | AJ167: 18.85
AE168: 380.5 | AF168: 19.25 | AG168: 17.74 | AH168: 18.72 | AI168: 18.08 | AJ168: 18.3
AE169: 381 | AF169: 18.85 | AG169: 17.38 | AH169: 18.32 | AI169: 17.69 | AJ169: 17.9
AE170: 381.5 | AF170: 18.44 | AG170: 17.02 | AH170: 17.97 | AI170: 17.32 | AJ170: 17.54
AE171: 382 | AF171: 18.1 | AG171: 16.68 | AH171: 17.6 | AI171: 16.98 | AJ171: 17.19
AE172: 382.5 | AF172: 17.61 | AG172: 16.22 | AH172: 17.14 | AI172: 16.53 | AJ172: 16.74
AE173: 383 | AF173: 17.13 | AG173: 15.78 | AH173: 16.66 | AI173: 16.07 | AJ173: 16.27
AE174: 383.5 | AF174: 16.64 | AG174: 15.36 | AH174: 16.19 | AI174: 15.63 | AJ174: 15.82
AE175: 384 | AF175: 16.3 | AG175: 15.02 | AH175: 15.85 | AI175: 15.29 | AJ175: 15.48
AE176: 384.5 | AF176: 15.98 | AG176: 14.76 | AH176: 15.58 | AI176: 15.03 | AJ176: 15.21
AE177: 385 | AF177: 15.61 | AG177: 14.41 | AH177: 15.21 | AI177: 14.66 | AJ177: 14.87
AE178: 385.5 | AF178: 15.21 | AG178: 14.04 | AH178: 14.83 | AI178: 14.29 | AJ178: 14.47
AE179: 386 | AF179: 14.78 | AG179: 13.64 | AH179: 14.41 | AI179: 13.88 | AJ179: 14.05
AE180: 386.5 | AF180: 14.41 | AG180: 13.3 | AH180: 14.02 | AI180: 13.53 | AJ180: 13.71
AE181: 387 | AF181: 14.1 | AG181: 12.99 | AH181: 13.74 | AI181: 13.23 | AJ181: 13.4
AE182: 387.5 | AF182: 13.79 | AG182: 12.73 | AH182: 13.44 | AI182: 12.95 | AJ182: 13.13
AE183: 388 | AF183: 13.5 | AG183: 12.45 | AH183: 13.14 | AI183: 12.68 | AJ183: 12.84
AE184: 388.5 | AF184: 13.11 | AG184: 12.12 | AH184: 12.8 | AI184: 12.32 | AJ184: 12.5
AE185: 389 | AF185: 12.77 | AG185: 11.81 | AH185: 12.45 | AI185: 12.02 | AJ185: 12.16
AE186: 389.5 | AF186: 12.43 | AG186: 11.48 | AH186: 12.14 | AI186: 11.69 | AJ186: 11.83
AE187: 390 | AF187: 12.17 | AG187: 11.23 | AH187: 11.88 | AI187: 11.44 | AJ187: 11.59
AE188: 390.5 | AF188: 11.94 | AG188: 11.05 | AH188: 11.68 | AI188: 11.23 | AJ188: 11.38
AE189: 391 | AF189: 11.7 | AG189: 10.8 | AH189: 11.43 | AI189: 11.01 | AJ189: 11.15
AE190: 391.5 | AF190: 11.42 | AG190: 10.54 | AH190: 11.14 | AI190: 10.73 | AJ190: 10.87
AE191: 392 | AF191: 11.06 | AG191: 10.23 | AH191: 10.82 | AI191: 10.42 | AJ191: 10.57
AE192: 392.5 | AF192: 10.73 | AG192: 9.95 | AH192: 10.5 | AI192: 10.12 | AJ192: 10.24
AE193: 393 | AF193: 10.49 | AG193: 9.7 | AH193: 10.27 | AI193: 9.87 | AJ193: 10.01
AE194: 393.5 | AF194: 10.27 | AG194: 9.51 | AH194: 10.05 | AI194: 9.68 | AJ194: 9.8
AE195: 394 | AF195: 10.07 | AG195: 9.32 | AH195: 9.86 | AI195: 9.49 | AJ195: 9.62
AE196: 394.5 | AF196: 9.79 | AG196: 9.05 | AH196: 9.58 | AI196: 9.23 | AJ196: 9.34
AE197: 395 | AF197: 9.5 | AG197: 8.79 | AH197: 9.31 | AI197: 8.95 | AJ197: 9.08
AE198: 395.5 | AF198: 9.25 | AG198: 8.56 | AH198: 9.05 | AI198: 8.71 | AJ198: 8.82
AE199: 396 | AF199: 9.03 | AG199: 8.36 | AH199: 8.84 | AI199: 8.5 | AJ199: 8.62
AE200: 396.5 | AF200: 8.85 | AG200: 8.19 | AH200: 8.67 | AI200: 8.35 | AJ200: 8.45
AE201: 397 | AF201: 8.67 | AG201: 8.03 | AH201: 8.5 | AI201: 8.17 | AJ201: 8.27
... 6 more rows

Sheet Figure 4
A1: Note: Absolute fluorescence intensity shown.
C3: Key | D3: Substrate controls (same substrate control was used for both AtPCO4 and AtPCO5)
D5: AtPCO4
D6: AtPCO5
A7: Figure 4a
B9: Substrate conc. (µM) | C9: Prerun | I9: Run | O9: Difference (Prerun - run) | U9: Corrected for substrate FI | X9: Percentage Quenching
C10: Buffer.Ni | F10: PCO4.Ni | I10: Buffer.Ni + RAP2.12 | L10: PCO4.Ni+RAP2.12 | O10: Buffer.Ni + RAP2.12 | R10: PCO4.Ni+RAP2.12 | U10: PCO4.Ni+RAP2.12 | X10: PCO4.Ni+RAP2.12
B11: 0 | C11: 6555 | D11: 6602 | E11: 6512 | F11: 178286 | G11: 178097 | H11: 173379 | I11: 6588 | J11: 6541 | K11: 6541 | L11: 183360 | M11: 184787 | N11: 181585 | O11: =C11-I11 -> -33 | P11: =D11-J11 -> 61 | Q11: =E11-K11 -> -29 | R11: =F11-L11 -> -5073.5 | S11: =G11-M11 -> -6689.625 | T11: =H11-N11 -> -8205.875 | U11: =R11-O11 -> -5040.5 | V11: =S11-P11 -> -6750.625 | W11: -8176.875 | X11: =((U11-$W$21)/F11)*100 -> 0.906 | Y11: =((V11-$W$21)/G11)*100 -> -0.053 | Z11: =((W11-$W$21)/H11)*100 -> -0.877
A12: AtPCO4 + RAP2.12 | B12: 50 | C12: 6720 | D12: 6806 | E12: 6876 | F12: 172331 | G12: 177554 | H12: 176361 | I12: 6510 | J12: 6640 | K12: 6719 | L12: 180176 | M12: 178272 | N12: 181861 | O12: 210 | P12: 166 | Q12: 157 | R12: -7845 | S12: -718 | T12: -5500 | U12: =R12-O12 -> -8055 | V12: =S12-P12 -> -884 | W12: =T12-Q12 -> -5657 | X12: -0.812 | Y12: 3.251 | Z12: 0.566
B13: 100 | C13: 6590 | D13: 6477 | E13: 6575 | F13: 173521 | G13: 180978 | H13: 186263 | I13: 6367 | J13: 6389 | K13: 6459 | L13: 176840 | M13: 181340 | N13: 177469 | O13: 223 | P13: 88 | Q13: 116 | R13: -3319 | S13: -362 | T13: 8794 | U13: -3542 | V13: -450 | W13: 8678 | X13: 1.795 | Y13: 3.429 | Z13: 8.232
B14: 200 | C14: 6849 | D14: 6967 | E14: 6504 | F14: 177890 | G14: 179067 | H14: 179309 | I14: 6761 | J14: 6927 | K14: 6581 | L14: 159645 | M14: 158001 | N14: 157150 | O14: 88 | P14: 40 | Q14: -77 | R14: 18245 | S14: 21066 | T14: 22159 | U14: 18157 | V14: 21026 | W14: 22236 | X14: 13.949 | Y14: 15.459 | Z14: 16.113
B15: 300 | C15: 6930 | D15: 7408 | E15: 6511 | F15: 179461 | G15: 179211 | H15: 179278 | I15: 6974 | J15: 7476 | K15: 6560 | L15: 138936 | M15: 144309 | N15: 142945 | O15: -44 | P15: -68 | Q15: -49 | R15: 40525 | S15: 34902 | T15: 36333 | U15: 40569 | V15: 34970 | W15: 36382 | X15: 26.315 | Y15: 23.227 | Z15: 24.006
B16: 400 | C16: 6988 | D16: 6556 | E16: 6384 | F16: 175523 | G16: 178807 | H16: 179710 | I16: 7009 | J16: 6611 | K16: 6534 | L16: 134076 | M16: 128919 | N16: 135281 | O16: -21 | P16: -55 | Q16: -150 | R16: 41447 | S16: 49888 | T16: 44429 | U16: 41468 | V16: 49943 | W16: 44579 | X16: 27.417 | Y16: 31.654 | Z16: 28.510
B17: 500 | C17: 6561 | D17: 6822 | E17: 6672 | F17: 173342 | G17: 179903 | H17: 179192 | I17: 6762 | J17: 6938 | K17: 6823 | L17: 121982 | M17: 128179 | N17: 129654 | O17: -201 | P17: -116 | Q17: -151 | R17: 51360 | S17: 51724 | T17: 49538 | U17: 51561 | V17: 51840 | W17: 49689 | X17: 33.585 | Y17: 32.515 | Z17: 31.444
B18: 600 | C18: 6490 | D18: 6624 | E18: 6652 | F18: 172357 | G18: 177416 | H18: 175489 | I18: 6822 | J18: 6875 | K18: 6911 | L18: 118778 | M18: 122937 | N18: 122360 | O18: -332 | P18: -251 | Q18: -259 | R18: 53579 | S18: 54479 | T18: 53129 | U18: 53911 | V18: 54730 | W18: 53388 | X18: 35.140 | Y18: 34.600 | Z18: 34.215
B19: 750 | C19: 6622 | D19: 6420 | E19: 7450 | F19: 174854 | G19: 176632 | H19: 176308 | I19: 6897 | J19: 6835 | K19: 7783 | L19: 116648 | M19: 120068 | N19: 122629 | O19: -275 | P19: -415 | Q19: -333 | R19: 58206 | S19: 56564 | T19: 53679 | U19: 58481 | V19: 56979 | W19: 54012 | X19: 37.252 | Y19: 36.027 | Z19: 34.410
U21: Average zero control = | W21: =AVERAGE(U11:W11) -> -6656.00
A24: Figure 4b
B26: Substrate conc. (µM) | C26: Prerun | I26: Run | O26: Difference (Prerun - run) | U26: Corrected for substrate FI | X26: Percentage Quenching
C27: Buffer.Ni | F27: PCO5.Ni | I27: Buffer.Ni + RAP2.12 | L27: PCO5.Ni+RAP2.12 | O27: Buffer.Ni + RAP2.12 | R27: PCO5.Ni+RAP2.12 | U27: PCO5.Ni+RAP2.12 | X27: PCO5.Ni+RAP2.12
B28: 0 | C28: 6555 | D28: 6602 | E28: 6512 | F28: 178899 | G28: 185596 | H28: 184571 | I28: 6588 | J28: 6541 | K28: 6541 | L28: 183912 | M28: 187268 | N28: 181674 | O28: =C28-I28 -> -33 | P28: =D28-J28 -> 61 | Q28: =E28-K28 -> -29 | R28: =F28-L28 -> -5012.125 | S28: =G28-M28 -> -1672.5 | T28: =H28-N28 -> 2897.75 | U28: =R28-O28 -> -4979.125 | V28: =S28-P28 -> -1733.5 | W28: =T28-Q28 -> 2926.75 | X28: =((U28-$W$38)/F28)*100 -> -2.078 | Y28: =((V28-$W$38)/G28)*100 -> -0.254 | Z28: =((W28-$W$38)/H28)*100 -> 2.269
A29: AtPCO5 + RAP2.12 | B29: 50 | C29: 6720 | D29: 6806 | E29: 6876 | F29: 187047 | G29: 178568 | H29: 176992 | I29: 6510 | J29: 6640 | K29: 6719 | L29: 177062 | M29: 181387 | N29: 175539 | O29: 210 | P29: 166 | Q29: 157 | R29: 9985 | S29: -2819 | T29: 1453 | U29: =R29-O29 -> 9775 | V29: -2985 | W29: 1296 | X29: 5.901 | Y29: -0.965 | Z29: 1.445
B30: 100 | C30: 6590 | D30: 6477 | E30: 6575 | F30: 183520 | G30: 178088 | H30: 178156 | I30: 6367 | J30: 6389 | K30: 6459 | L30: 181342 | M30: 181606 | N30: 176643 | O30: 223 | P30: 88 | Q30: 116 | R30: 2178 | S30: -3518 | T30: 1513 | U30: 1955 | V30: -3606 | W30: 1397 | X30: 1.753 | Y30: -1.316 | Z30: 1.492
B31: 200 | C31: 6849 | D31: 6967 | E31: 6504 | F31: 187271 | G31: 178271 | H31: 178750 | I31: 6761 | J31: 6927 | K31: 6581 | L31: 174166 | M31: 173106 | N31: 168283 | O31: 88 | P31: 40 | Q31: -77 | R31: 13105 | S31: 5165 | T31: 10467 | U31: 13017 | V31: 5125 | W31: 10544 | X31: 7.625 | Y31: 3.583 | Z31: 6.605
B32: 300 | C32: 6930 | D32: 7408 | E32: 6511 | F32: 184685 | G32: 181908 | H32: 178520 | I32: 6974 | J32: 7476 | K32: 6560 | L32: 161329 | M32: 157150 | N32: 159032 | O32: -44 | P32: -68 | Q32: -49 | R32: 23356 | S32: 24758 | T32: 19488 | U32: 23400 | V32: 24826 | W32: 19537 | X32: 13.354 | Y32: 14.341 | Z32: 11.651
B33: 400 | C33: 6988 | D33: 6556 | E33: 6384 | F33: 189651 | G33: 181010 | H33: 181722 | I33: 7009 | J33: 6611 | K33: 6534 | L33: 157728 | M33: 150427 | N33: 151901 | O33: -21 | P33: -55 | Q33: -150 | R33: 31923 | S33: 30583 | T33: 29821 | U33: 31944 | V33: 30638 | W33: 29971 | X33: 17.509 | Y33: 17.623 | Z33: 17.187
B34: 500 | C34: 6561 | D34: 6822 | E34: 6672 | F34: 188807 | G34: 180749 | H34: 178080 | I34: 6762 | J34: 6938 | K34: 6823 | L34: 152373 | M34: 147847 | N34: 145697 | O34: -201 | P34: -116 | Q34: -151 | R34: 36434 | S34: 32902 | T34: 32383 | U34: 36635 | V34: 33018 | W34: 32534 | X34: 20.072 | Y34: 18.966 | Z34: 18.978
B35: 600 | C35: 6490 | D35: 6624 | E35: 6652 | F35: 186858 | G35: 179131 | H35: 177352 | I35: 6822 | J35: 6875 | K35: 6911 | L35: 150973 | M35: 148816 | N35: 143782 | O35: -332 | P35: -251 | Q35: -259 | R35: 35885 | S35: 30315 | T35: 33570 | U35: 36217 | V35: 30566 | W35: 33829 | X35: 20.057 | Y35: 17.768 | Z35: 19.786
B36: 750 | C36: 6622 | D36: 6420 | E36: 7450 | F36: 188931 | G36: 181141 | H36: 178718 | I36: 6897 | J36: 6835 | K36: 7783 | L36: 151535 | M36: 142940 | N36: 144884 | O36: -275 | P36: -415 | Q36: -333 | R36: 37396 | S36: 38201 | T36: 33834 | U36: 37671 | V36: 38616 | W36: 34167 | X36: 20.607 | Y36: 22.015 | Z36: 19.824
U38: Average zero control = | W38: =AVERAGE(U28:W28) -> -1261.96
A41: Figure 4c
B43: Substrate conc. (µM) | C43: Prerun | I43: Run | O43: Difference (Prerun - run) | U43: Corrected for substrate FI | X43: Percentage Quenching
C44: Buffer.Ni | F44: PCO4.Ni | I44: Buffer.Ni + HRE1 | L44: PCO4.Ni+HRE1 | O44: Buffer.Ni + HRE1 | R44: PCO4.Ni+HRE1 | U44: PCO4.Ni+HRE1 | X44: PCO4.Ni+HRE1
B45: 0 | C45: 6669 | D45: 6539 | E45: 6801 | F45: 156314 | G45: 156788 | H45: 154598 | I45: 6530 | J45: 6420 | K45: 6934 | L45: 159293 | M45: 158471 | N45: 155596 | O45: =C45-I45 -> 139 | P45: =D45-J45 -> 119 | Q45: =E45-K45 -> -133 | R45: =F45-L45 -> -2978.75 | S45: =G45-M45 -> -1683.25 | T45: =H45-N45 -> -997.5 | U45: =R45-O45 -> -3117.75 | V45: =S45-P45 -> -1802.25 | W45: =T45-Q45 -> -864.5 | X45: =((U45-$W$56)/F45)*100 -> -1.995 | Y45: =((V45-$W$56)/G45)*100 -> -1.149 | Z45: =((W45-$W$56)/H45)*100 -> -0.559
A46: AtPCO4 + HRE1 | B46: 50 | C46: 6782 | D46: 6727 | E46: 7249 | F46: 152281 | G46: 152200 | H46: 154700 | I46: 7121 | J46: 6945 | K46: 7388 | L46: 136279 | M46: 150344 | N46: 152459 | O46: -339 | P46: -218 | Q46: -139 | R46: 16002 | S46: 1856 | T46: 2241 | U46: =R46-O46 -> 16341 | V46: 2074 | W46: 2380 | X46: 10.731 | Y46: 1.363 | Z46: 1.538
B47: 100 | C47: 6659 | D47: 6485 | E47: 6438 | F47: 155091 | G47: 151423 | H47: 156726 | I47: 7333 | J47: 7229 | K47: 7177 | L47: 148383 | M47: 152029 | N47: 155366 | O47: -674 | P47: -744 | Q47: -739 | R47: 6708 | S47: -606 | T47: 1360 | U47: 7382 | V47: 138 | W47: 2099 | X47: 4.760 | Y47: 0.091 | Z47: 1.339
B48: 200 | C48: 6764 | D48: 6952 | E48: 6984 | F48: 153468 | G48: 152725 | H48: 157485 | I48: 8360 | J48: 8542 | K48: 8547 | L48: 143568 | M48: 141900 | N48: 145917 | O48: -1596 | P48: -1590 | Q48: -1563 | R48: 9900 | S48: 10825 | T48: 11568 | U48: 11496 | V48: 12415 | W48: 13131 | X48: 7.491 | Y48: 8.129 | Z48: 8.338
B49: 300 | C49: 6785 | D49: 6792 | E49: 6562 | F49: 154359 | G49: 155306 | H49: 156469 | I49: 10124 | J49: 9404 | K49: 9232 | L49: 132826 | M49: 132634 | N49: 132733 | O49: -3339 | P49: -2612 | Q49: -2670 | R49: 21533 | S49: 22672 | T49: 23736 | U49: 24872 | V49: 25284 | W49: 26406 | X49: 16.113 | Y49: 16.280 | Z49: 16.876
B50: 400 | C50: 6284 | D50: 6622 | E50: 6309 | F50: 155008 | G50: 155285 | H50: 159194 | I50: 9762 | J50: 9490 | K50: 9153 | L50: 117299 | M50: 124019 | N50: 126335 | O50: -3478 | P50: -2868 | Q50: -2844 | R50: 37709 | S50: 31266 | T50: 32859 | U50: 41187 | V50: 34134 | W50: 35703 | X50: 26.571 | Y50: 21.982 | Z50: 22.427
B51: 500 | C51: 6716 | D51: 6934 | E51: 6628 | F51: 154486 | G51: 155780 | H51: 161138 | I51: 10196 | J51: 10698 | K51: 10368 | L51: 113382 | M51: 120381 | N51: 120218 | O51: -3480 | P51: -3764 | Q51: -3740 | R51: 41104 | S51: 35399 | T51: 40920 | U51: 44584 | V51: 39163 | W51: 44660 | X51: 28.860 | Y51: 25.140 | Z51: 27.715
B52: 600 | C52: 6752 | D52: 6756 | E52: 6652 | F52: 152979 | G52: 154830 | H52: 158946 | I52: 12117 | J52: 11558 | K52: 9892 | L52: 108543 | M52: 114504 | N52: 115772 | O52: -5365 | P52: -4802 | Q52: -3240 | R52: 44436 | S52: 40326 | T52: 43174 | U52: 49801 | V52: 45128 | W52: 46414 | X52: 32.554 | Y52: 29.147 | Z52: 29.201
B53: 750 | C53: 6623 | D53: 6338 | E53: 8693 | F53: 153846 | G53: 154113 | H53: 154533 | I53: 12188 | J53: 11116 | K53: 11663 | L53: 111401 | M53: 115774 | N53: 112093 | O53: -5565 | P53: -4778 | Q53: -2970 | R53: 42445 | S53: 38339 | T53: 42440 | U53: 48010 | V53: 43117 | W53: 45410 | X53: 31.207 | Y53: 27.978 | Z53: 29.385
U55: Average zero control = | W55: =AVERAGE(U45:W45) -> -1928.17
A58: Figure 4d
B60: Substrate conc. (µM) | C60: Prerun | I60: Run | O60: Difference (Prerun - run) | U60: Corrected for substrate FI | X60: Percentage Quenching
C61: Buffer.Ni | F61: PCO5.Ni | I61: Buffer.Ni + HRE1 | L61: PCO5.Ni+HRE1 | O61: Buffer.Ni + HRE1 | R61: PCO5.Ni+HRE1 | U61: PCO5.Ni+HRE1 | X61: PCO5.Ni+HRE1
B62: 0 | C62: 6669 | D62: 6539 | E62: 6801 | F62: 167004.125 | G62: 166146 | H62: 168222.625 | I62: 6530 | J62: 6420 | K62: 6934 | L62: 168983.75 | M62: 167034.25 | N62: 167191.25 | O62: =C62-I62 -> 139 | P62: =D62-J62 -> 119 | Q62: =E62-K62 -> -133 | R62: =F62-L62 -> -1979.625 | S62: =G62-M62 -> -888.25 | T62: =H62-N62 -> 1031.375 | U62: =R62-O62 -> -2118.625 | V62: =S62-P62 -> -1007.25 | W62: =T62-Q62 -> 1164.375 | X62: =((U62-$W$72)/F62)*100 -> -0.877 | Y62: =((V62-$W$72)/G62)*100 -> -0.213 | Z62: =((W62-$W$72)/H62)*100 -> 1.081
A63: AtPCO5 + HRE1 | B63: 50 | C63: 6782 | D63: 6727 | E63: 7249 | F63: 160881 | G63: 162636 | H63: 163114 | I63: 7121 | J63: 6945 | K63: 7388 | L63: 158531 | M63: 162886 | N63: 161073 | O63: -339 | P63: -218 | Q63: -139 | R63: 2350 | S63: -250 | T63: 2041 | U63: =R63-O63 -> 2689 | V63: -32 | W63: 2180 | X63: 2.078 | Y63: 0.382 | Z63: 1.737
B64: 100 | C64: 6659 | D64: 6485 | E64: 6438 | F64: 164984 | G64: 162657 | H64: 163701 | I64: 7333 | J64: 7229 | K64: 7177 | L64: 161638 | M64: 161188 | N64: 158197 | O64: -674 | P64: -744 | Q64: -739 | R64: 3346 | S64: 1469 | T64: 5504 | U64: 4020 | V64: 2213 | W64: 6243 | X64: 2.833 | Y64: 1.763 | Z64: 4.213
B65: 200 | C65: 6764 | D65: 6952 | E65: 6984 | F65: 161333 | G65: 161212 | H65: 165019 | I65: 8360 | J65: 8542 | K65: 8547 | L65: 150023 | M65: 151745 | N65: 151167 | O65: -1596 | P65: -1590 | Q65: -1563 | R65: 11310 | S65: 9467 | T65: 13852 | U65: 12906 | V65: 11057 | W65: 15415 | X65: 8.405 | Y65: 7.264 | Z65: 9.738
B66: 300 | C66: 6785 | D66: 6792 | E66: 6562 | F66: 164740 | G66: 164779 | H66: 165129 | I66: 10124 | J66: 9404 | K66: 9232 | L66: 141252 | M66: 141816 | N66: 141253 | O66: -3339 | P66: -2612 | Q66: -2670 | R66: 23488 | S66: 22963 | T66: 23876 | U66: 26827 | V66: 25575 | W66: 26546 | X66: 16.681 | Y66: 15.918 | Z66: 16.472
B67: 400 | C67: 6284 | D67: 6622 | E67: 6309 | F67: 164565 | G67: 164399 | H67: 164103 | I67: 9762 | J67: 9490 | K67: 9153 | L67: 138721 | M67: 138573 | N67: 137240 | O67: -3478 | P67: -2868 | Q67: -2844 | R67: 25844 | S67: 25826 | T67: 26863 | U67: 29322 | V67: 28694 | W67: 29707 | X67: 18.215 | Y67: 17.852 | Z67: 18.501
B68: 500 | C68: 6716 | D68: 6934 | E68: 6628 | F68: 164454 | G68: 161983 | H68: 154330 | I68: 10196 | J68: 10698 | K68: 10368 | L68: 138357 | M68: 136440 | N68: 128795 | O68: -3480 | P68: -3764 | Q68: -3740 | R68: 26097 | S68: 25543 | T68: 25535 | U68: 29577 | V68: 29307 | W68: 29275 | X68: 18.383 | Y68: 18.496 | Z68: 19.393
B69: 600 | C69: 6752 | D69: 6756 | E69: 6652 | F69: 164813 | G69: 165010 | H69: 164018 | I69: 12117 | J69: 11558 | K69: 9892 | L69: 135692 | M69: 135211 | N69: 135633 | O69: -5365 | P69: -4802 | Q69: -3240 | R69: 29121 | S69: 29799 | T69: 28385 | U69: 34486 | V69: 34601 | W69: 31625 | X69: 21.321 | Y69: 21.365 | Z69: 19.680
B70: 750 | C70: 6623 | D70: 6338 | E70: 8693 | F70: 164526 | G70: 165059 | H70: 162424 | I70: 12188 | J70: 11116 | K70: 11663 | L70: 134942 | M70: 135238 | N70: 131898 | O70: -5565 | P70: -4778 | Q70: -2970 | R70: 29584 | S70: 29821 | T70: 30526 | U70: 35149 | V70: 34599 | W70: 33496 | X70: 21.761 | Y70: 21.358 | Z70: 21.025
U72: Average zero control = | W72: =AVERAGE(U62:W62) -> -653.833
A75: Figure 4e
B77: Substrate conc. (µM) | C77: Prerun | I77: Run | O77: Difference (Prerun - run) | U77: Corrected for substrate FI | X77: Percentage Quenching
C78: Buffer.Ni | F78: PCO4.Ni | I78: Buffer.Ni + ZPR2 | L78: PCO4.Ni+ZPR2 | O78: Buffer.Ni + ZPR2 | R78: PCO4.Ni+ZPR2 | U78: PCO4.Ni+ZPR2 | X78: PCO4.Ni+ZPR2
B79: 0 | C79: 6732 | D79: 6849 | E79: 6923 | F79: 195856 | G79: 192815.125 | H79: 190425.375 | I79: 6698 | J79: 6880 | K79: 6916 | L79: 208437.375 | M79: 205295.75 | N79: 200689.125 | O79: =C79-I79 -> 34 | P79: =D79-J79 -> -31 | Q79: =E79-K79 -> 7 | R79: =F79-L79 -> -12581.375 | S79: =G79-M79 -> -12480.625 | T79: =H79-N79 -> -10263.75 | U79: =R79-O79 -> -12615.375 | V79: =S79-P79 -> -12449.625 | W79: =T79-Q79 -> -10270.75 | X79: =((U79-$W$89)/F79)*100 -> -0.427 | Y79: =((V79-$W$89)/G79)*100 -> -0.348 | Z79: =((W79-$W$89)/H79)*100 -> 0.792
A80: AtPCO4 + ZPR2 | B80: 50 | C80: 7012 | D80: 6743 | E80: 6944 | F80: 190585 | G80: 189036 | H80: 195286 | I80: 6726 | J80: 6517 | K80: 6703 | L80: 203295 | M80: 201316 | N80: 208172 | O80: 286 | P80: 226 | Q80: 241 | R80: -12710 | S80: -12280 | T80: -12886 | U80: =R80-O80 -> -12996 | V80: -12506 | W80: -13127 | X80: -0.639 | Y80: -0.385 | Z80: -0.690
B81: 100 | C81: 6721 | D81: 6853 | E81: 7019 | F81: 189859 | G81: 187025 | H81: 188406 | I81: 6437 | J81: 6595 | K81: 6700 | L81: 199427 | M81: 201311 | N81: 202116 | O81: 284 | P81: 258 | Q81: 319 | R81: -9568 | S81: -14286 | T81: -13710 | U81: -9852 | V81: -14544 | W81: -14029 | X81: 1.015 | Y81: -1.479 | Z81: -1.194
B82: 200 | C82: 6871 | D82: 6779 | E82: 6877 | F82: 188278 | G82: 185132 | H82: 186778 | I82: 6616 | J82: 6473 | K82: 6548 | L82: 195254 | M82: 191285 | N82: 195848 | O82: 255 | P82: 306 | Q82: 329 | R82: -6976 | S82: -6153 | T82: -9070 | U82: -7231 | V82: -6459 | W82: -9399 | X82: 2.415 | Y82: 2.873 | Z82: 1.274
B83: 300 | C83: 6896 | D83: 6650 | E83: 6915 | F83: 184128 | G83: 175916 | H83: 186260 | I83: 6633 | J83: 6350 | K83: 6605 | L83: 189160 | M83: 179591 | N83: 190147 | O83: 263 | P83: 300 | Q83: 310 | R83: -5032 | S83: -3675 | T83: -3887 | U83: -5295 | V83: -3975 | W83: -4197 | X83: 3.521 | Y83: 4.436 | Z83: 4.070
B84: 400 | C84: 6577 | D84: 6918 | E84: 6923 | F84: 176106 | G84: 178572 | H84: 179213 | I84: 6187 | J84: 6542 | K84: 6466 | L84: 176379 | M84: 177457 | N84: 171791 | O84: 390 | P84: 376 | Q84: 457 | R84: -273 | S84: 1115 | T84: 7422 | U84: -663 | V84: 739 | W84: 6965 | X84: 6.312 | Y84: 7.010 | Z84: 10.459
B85: 500 | C85: 6811 | D85: 6874 | E85: 6848 | F85: 185064 | G85: 177901 | H85: 183160 | I85: 6482 | J85: 6473 | K85: 6455 | L85: 179030 | M85: 172754 | N85: 180691 | O85: 329 | P85: 401 | Q85: 393 | R85: 6034 | S85: 5147 | T85: 2469 | U85: 5705 | V85: 4746 | W85: 2076 | X85: 9.447 | Y85: 9.289 | Z85: 7.564
B86: 600 | C86: 7109 | D86: 6555 | E86: 6748 | F86: 183427 | G86: 176128 | H86: 183441 | I86: 6722 | J86: 6212 | K86: 6416 | L86: 187208 | M86: 171094 | N86: 174208 | O86: 387 | P86: 343 | Q86: 332 | R86: -3781 | S86: 5034 | T86: 9233 | U86: -4168 | V86: 4691 | W86: 8901 | X86: 4.149 | Y86: 9.351 | Z86: 11.273
B87: 750 | C87: 6749 | D87: 6812 | E87: 7019 | F87: 176926 | G87: 174175 | H87: 181626 | I87: 6418 | J87: 6354 | K87: 6556 | L87: 166264 | M87: 160113 | N87: 166874 | O87: 331 | P87: 458 | Q87: 463 | R87: 10662 | S87: 14062 | T87: 14752 | U87: 10331 | V87: 13604 | W87: 14289 | X87: 12.497 | Y87: 14.573 | Z87: 14.352
U89: Average zero control = | W89: =AVERAGE(U79:W79) -> -11778.6
A92: Figure 4f
B94: Substrate conc. (µM) | C94: Prerun | I94: Run | O94: Difference (Prerun - run) | U94: Corrected for substrate FI | X94: Percentage Quenching
C95: Buffer.Ni | F95: PCO5.Ni | I95: Buffer.Ni + ZPR2 | L95: PCO5.Ni+ZPR2 | O95: Buffer.Ni + ZPR2 | R95: PCO5.Ni+ZPR2 | U95: PCO5.Ni+RAP2.12 | X95: PCO5.Ni+ZPR2
B96: 0 | C96: 6732 | D96: 6849 | E96: 6923 | F96: 180956.625 | G96: 182860.625 | H96: 179213.875 | I96: 6698 | J96: 6880 | K96: 6916 | L96: 188995.5 | M96: 188059.125 | N96: 191635.875 | O96: =C96-I96 -> 34 | P96: =D96-J96 -> -31 | Q96: =E96-K96 -> 7 | R96: =F96-L96 -> -8038.875 | S96: =G96-M96 -> -5198.5 | T96: =H96-N96 -> -12422 | U96: =R96-O96 -> -8072.875 | V96: =S96-P96 -> -5167.5 | W96: =T96-Q96 -> -12429 | X96: =((U96-$W$106)/F96)*100 -> 0.267 | Y96: =((V96-$W$106)/G96)*100 -> 1.853 | Z96: =((W96-$W$106)/H96)*100 -> -2.161
A97: AtPCO5 + ZPR2 | B97: 50 | C97: 7012 | D97: 6743 | E97: 6944 | F97: 182939 | G97: 192159 | H97: 191918 | I97: 6726 | J97: 6517 | K97: 6703 | L97: 188274 | M97: 196712 | N97: 191272 | O97: 286 | P97: 226 | Q97: 241 | R97: -5335 | S97: -4553 | T97: 646 | U97: =R97-O97 -> -5621 | V97: -4779 | W97: 405 | X97: 1.605 | Y97: 1.966 | Z97: 4.669
B98: 100 | C98: 6721 | D98: 6853 | E98: 7019 | F98: 179200 | G98: 189003 | H98: 187992 | I98: 6437 | J98: 6595 | K98: 6700 | L98: 188162 | M98: 195879 | N98: 193445 | O98: 284 | P98: 258 | Q98: 319 | R98: -8962 | S98: -6876 | T98: -5453 | U98: -9246 | V98: -7134 | W98: -5772 | X98: -0.385 | Y98: 0.753 | Z98: 1.481
B99: 200 | C99: 6871 | D99: 6779 | E99: 6877 | F99: 185279 | G99: 189972 | H99: 188739 | I99: 6616 | J99: 6473 | K99: 6548 | L99: 186713 | M99: 193635 | N99: 192806 | O99: 255 | P99: 306 | Q99: 329 | R99: -1434 | S99: -3663 | T99: -4067 | U99: -1689 | V99: -3969 | W99: -4396 | X99: 3.707 | Y99: 2.415 | Z99: 2.204
B100: 300 | C100: 6896 | D100: 6650 | E100: 6915 | F100: 184883 | G100: 187122 | H100: 188832 | I100: 6633 | J100: 6350 | K100: 6605 | L100: 186593 | M100: 188186 | N100: 189542 | O100: 263 | P100: 300 | Q100: 310 | R100: -1710 | S100: -1064 | T100: -710 | U100: -1973 | V100: -1364 | W100: -1020 | X100: 3.561 | Y100: 3.844 | Z100: 3.991
B101: 400 | C101: 6577 | D101: 6918 | E101: 6923 | F101: 183832 | G101: 197792 | H101: 186142 | I101: 6187 | J101: 6542 | K101: 6466 | L101: 181605 | M101: 193117 | N101: 185129 | O101: 390 | P101: 376 | Q101: 457 | R101: 2227 | S101: 4675 | T101: 1013 | U101: 1837 | V101: 4299 | W101: 556 | X101: 5.654 | Y101: 6.499 | Z101: 4.895
B102: 500 | C102: 6811 | D102: 6874 | E102: 6848 | F102: 176337 | G102: 195626 | H102: 187682 | I102: 6482 | J102: 6473 | K102: 6455 | L102: 177139 | M102: 182334 | N102: 182423 | O102: 329 | P102: 401 | Q102: 393 | R102: -802 | S102: 13292 | T102: 5259 | U102: -1131 | V102: 12891 | W102: 4866 | X102: 4.211 | Y102: 10.964 | Z102: 7.152
B103: 600 | C103: 7109 | D103: 6555 | E103: 6748 | F103: 175161 | G103: 194030 | H103: 183076 | I103: 6722 | J103: 6212 | K103: 6416 | L103: 173712 | M103: 187243 | N103: 178001 | O103: 387 | P103: 343 | Q103: 332 | R103: 1449 | S103: 6787 | T103: 5075 | U103: 1062 | V103: 6444 | W103: 4743 | X103: 5.491 | Y103: 7.731 | Z103: 7.264
B104: 750 | C104: 6749 | D104: 6812 | E104: 7019 | F104: 164105 | G104: 182354 | H104: 182062 | I104: 6418 | J104: 6354 | K104: 6556 | L104: 163307 | M104: 174034 | N104: 175846 | O104: 331 | P104: 458 | Q104: 463 | R104: 798 | S104: 8320 | T104: 6216 | U104: 467 | V104: 7862 | W104: 5753 | X104: 5.499 | Y104: 9.004 | Z104: 7.860
U106: Average zero control = | W106: =AVERAGE(U96:W96) -> -8556.46
A109: Figure 4g
B111: Substrate conc. (µM) | C111: Prerun | I111: Run | O111: Difference (Prerun - run) | U111: Corrected for substrate FI | X111: Percentage Quenching
C112: Buffer.Ni | F112: PCO4.Ni | I112: Buffer.Ni + VRN2 | L112: PCO4.Ni+VRN2 | O112: Buffer.Ni + VRN2 | R112: PCO4.Ni+VRN2 | U112: PCO4.Ni+VRN2 | X112: PCO4.Ni+VRN2
B113: 0 | C113: 6887 | D113: 6933 | E113: 7111 | F113: 203214.875 | G113: 204957.375 | H113: 204088.625 | I113: 6712 | J113: 6790 | K113: 6985 | L113: 212760.375 | M113: 213269 | N113: 211981.625 | O113: =C113-I113 -> 175 | P113: =D113-J113 -> 143 | Q113: =E113-K113 -> 126 | R113: =F113-L113 -> -9545.5 | S113: =G113-M113 -> -8311.625 | T113: =H113-N113 -> -7893 | U113: =R113-O113 -> -9720.5 | V113: =S113-P113 -> -8454.625 | W113: =T113-Q113 -> -8019 | X113: =((U113-$W$123)/F113)*100 -> -0.487 | Y113: =((V113-$W$123)/G113)*100 -> 0.135 | Z113: =((W113-$W$123)/H113)*100 -> 0.349
A114: AtPCO4 + VRN2 | B114: 50 | C114: 6769 | D114: 7367 | E114: 7271 | F114: 204685 | G114: 201546 | H114: 205204 | I114: 6410 | J114: 6877 | K114: 6789 | L114: 208155 | M114: 204541 | N114: 203847 | O114: 359 | P114: 490 | Q114: 482 | R114: -3470 | S114: -2995 | T114: 1357 | U114: =R114-O114 -> -3829 | V114: -3485 | W114: 875 | X114: 2.395 | Y114: 2.603 | Z114: 4.681
B115: 100 | C115: 6618 | D115: 6770 | E115: 6773 | F115: 201047 | G115: 199917 | H115: 200837 | I115: 6156 | J115: 6301 | K115: 6281 | L115: 204673 | M115: 194667 | N115: 203028 | O115: 462 | P115: 469 | Q115: 492 | R115: -3626 | S115: 5250 | T115: -2191 | U115: -4088 | V115: 4781 | W115: -2683 | X115: 2.310 | Y115: 6.759 | Z115: 3.012
B116: 200 | C116: 6958 | D116: 6659 | E116: 7111 | F116: 205904 | G116: 204866 | H116: 206110 | I116: 6475 | J116: 6219 | K116: 6570 | L116: 200097 | M116: 190026 | N116: 194663 | O116: 483 | P116: 440 | Q116: 541 | R116: 5807 | S116: 14840 | T116: 11447 | U116: 5324 | V116: 14400 | W116: 10906 | X116: 6.826 | Y116: 11.291 | Z116: 9.528
B117: 300 | C117: 6987 | D117: 6736 | E117: 7029 | F117: 210022 | G117: 206976 | H117: 207784 | I117: 6450 | J117: 6170 | K117: 6467 | L117: 195212 | M117: 191180 | N117: 192130 | O117: 537 | P117: 566 | Q117: 562 | R117: 14810 | S117: 15796 | T117: 15654 | U117: 14273 | V117: 15230 | W117: 15092 | X117: 10.953 | Y117: 11.577 | Z117: 11.465
B118: 400 | C118: 6636 | D118: 6852 | E118: 6976 | F118: 212699 | G118: 212968 | H118: 211413 | I118: 6031 | J118: 6379 | K118: 6313 | L118: 193539 | M118: 192519 | N118: 192886 | O118: 605 | P118: 473 | Q118: 663 | R118: 19160 | S118: 20449 | T118: 18527 | U118: 18555 | V118: 19976 | W118: 17864 | X118: 12.829 | Y118: 13.480 | Z118: 12.580
B119: 500 | C119: 6954 | D119: 6831 | E119: 7065 | F119: 211659 | G119: 208519 | H119: 208990 | I119: 6393 | J119: 6276 | K119: 6496 | L119: 188715 | M119: 184725 | N119: 186207 | O119: 561 | P119: 555 | Q119: 569 | R119: 22944 | S119: 23794 | T119: 22783 | U119: 22383 | V119: 23239 | W119: 22214 | X119: 14.700 | Y119: 15.332 | Z119: 14.807
B120: 600 | C120: 6079 | D120: 7068 | E120: 6966 | F120: 207861 | G120: 208778 | H120: 208635 | I120: 5533 | J120: 6458 | K120: 6446 | L120: 182839 | M120: 168178 | N120: 183020 | O120: 546 | P120: 610 | Q120: 520 | R120: 25022 | S120: 40600 | T120: 25615 | U120: 24476 | V120: 39990 | W120: 25095 | X120: 15.976 | Y120: 23.336 | Z120: 16.213
B121: 750 | C121: 6844 | D121: 6902 | E121: 6915 | F121: 209721 | G121: 202485 | H121: 207807 | I121: 6320 | J121: 6386 | K121: 6309 | L121: 180068 | M121: 161678 | N121: 178749 | O121: 524 | P121: 516 | Q121: 606 | R121: 29653 | S121: 40807 | T121: 29058 | U121: 29129 | V121: 40291 | W121: 28452 | X121: 18.053 | Y121: 24.210 | Z121: 17.893
U123: Average zero control = | W123: =AVERAGE(U113:W113) -> -8731.38
A126: Figure 4h
B128: Substrate conc. (µM) | C128: Prerun | I128: Run | O128: Difference (Prerun - run) | U128: Corrected for substrate FI | X128: Percentage Quenching
C129: Buffer.Ni | F129: PCO5.Ni | I129: Buffer.Ni + VRN2 | L129: PCO5.Ni+VRN2 | O129: Buffer.Ni + VRN2 | R129: PCO5.Ni+VRN2 | U129: PCO5.Ni+VRN2 | X129: PCO5.Ni+VRN2
B130: 0 | C130: 6887 | D130: 6933 | E130: 7111 | F130: 150835 | G130: 159317.5 | H130: 154986.5 | I130: 6712 | J130: 6790 | K130: 6985 | L130: 153361.25 | M130: 159631.375 | N130: 156197.75 | O130: =C130-I130 -> 175 | P130: =D130-J130 -> 143 | Q130: =E130-K130 -> 126 | R130: =F130-L130 -> -2526.25 | S130: =G130-M130 -> -313.875 | T130: =H130-N130 -> -1211.25 | U130: =R130-O130 -> -2701.25 | V130: =S130-P130 -> -456.875 | W130: =T130-Q130 -> -1337.25 | X130: =((U130-$W$140)/F130)*100 -> -0.797 | Y130: =((V130-$W$140)/G130)*100 -> 0.654 | Z130: =((W130-$W$140)/H130)*100 -> 0.104
A131: AtPCO5 + VRN2 | B131: 50 | C131: 6769 | D131: 7367 | E131: 7271 | F131: 143888 | G131: 149165 | H131: 147586 | I131: 6410 | J131: 6877 | K131: 6789 | L131: 157013 | M131: 142957 | N131: 144806 | O131: 359 | P131: 490 | Q131: 482 | R131: -13125 | S131: 6208 | T131: 2780 | U131: =R131-O131 -> -13484 | V131: 5718 | W131: 2298 | X131: -8.330 | Y131: 4.838 | Z131: 2.572
B132: 100 | C132: 6618 | D132: 6770 | E132: 6773 | F132: 148225 | G132: 146769 | H132: 147925 | I132: 6156 | J132: 6301 | K132: 6281 | L132: 139915 | M132: 139300 | N132: 137727 | O132: 462 | P132: 469 | Q132: 492 | R132: 8310 | S132: 7469 | T132: 10198 | U132: 7848 | V132: 7000 | W132: 9706 | X132: 6.306 | Y132: 5.790 | Z132: 7.574
B133: 200 | C133: 6958 | D133: 6659 | E133: 7111 | F133: 149866 | G133: 149065 | H133: 151183 | I133: 6475 | J133: 6219 | K133: 6570 | L133: 139846 | M133: 138637 | N133: 139074 | O133: 483 | P133: 440 | Q133: 541 | R133: 10020 | S133: 10428 | T133: 12109 | U133: 9537 | V133: 9988 | W133: 11568 | X133: 7.364 | Y133: 7.706 | Z133: 8.643
B134: 300 | C134: 6987 | D134: 6736 | E134: 7029 | F134: 142851 | G134: 149947 | H134: 151576 | I134: 6450 | J134: 6170 | K134: 6467 | L134: 133648 | M134: 143730 | N134: 138429 | O134: 537 | P134: 566 | Q134: 562 | R134: 9203 | S134: 6217 | T134: 13147 | U134: 8666 | V134: 5651 | W134: 12585 | X134: 7.115 | Y134: 4.768 | Z134: 9.291
B135: 400 | C135: 6636 | D135: 6852 | E135: 6976 | F135: 150833 | G135: 150774 | H135: 150979 | I135: 6031 | J135: 6379 | K135: 6313 | L135: 139433 | M135: 138296 | N135: 135863 | O135: 605 | P135: 473 | Q135: 663 | R135: 11400 | S135: 12478 | T135: 15116 | U135: 10795 | V135: 12005 | W135: 14453 | X135: 8.150 | Y135: 8.956 | Z135: 10.565
B136: 500 | C136: 6954 | D136: 6831 | E136: 7065 | F136: 147493 | G136: 150247 | H136: 154970 | I136: 6393 | J136: 6276 | K136: 6496 | L136: 136157 | M136: 136951 | N136: 137410 | O136: 561 | P136: 555 | Q136: 569 | R136: 11336 | S136: 13296 | T136: 17560 | U136: 10775 | V136: 12741 | W136: 16991 | X136: 8.321 | Y136: 9.477 | Z136: 11.931
B137: 600 | C137: 6079 | D137: 7068 | E137: 6966 | F137: 154348 | G137: 157567 | H137: 149196 | I137: 5533 | J137: 6458 | K137: 6446 | L137: 137563 | M137: 141521 | N137: 134106 | O137: 546 | P137: 610 | Q137: 520 | R137: 16785 | S137: 16046 | T137: 15090 | U137: 16239 | V137: 15436 | W137: 14570 | X137: 11.492 | Y137: 10.747 | Z137: 10.770
B138: 750 | C138: 6844 | D138: 6902 | E138: 6915 | F138: 148705 | G138: 148820 | H138: 150411 | I138: 6320 | J138: 6386 | K138: 6309 | L138: 133890 | M138: 135163 | N138: 134818 | O138: 524 | P138: 516 | Q138: 606 | R138: 14815 | S138: 13657 | T138: 15593 | U138: 14291 | V138: 13141 | W138: 14987 | X138: 10.618 | Y138: 9.837 | Z138: 10.960
U140: Average zero control = | W140: =AVERAGE(U130:W130) -> -1498.46

Sheet Table1
B1: AtPCO4-RAP2.12 | C1: AtPCO5-RAP2.12 | D1: AtPCO4-HRE1 | E1: AtPCO5-HRE1 | F1: AtPCO4-ZPR2 | I1: * Data analyis files from GraphPad Prism (v 10.1.1).
A2: One site -- Specific binding with Hill slope
A3: Best-fit values
A4: Bmax | B4: 38.46 | C4: 20.96 | D4: 36.48 | E4: 22.2 | F4: 21.1
A5: h | B5: 2.319 | C5: 3.536 | D5: 2.263 | E5: 2.554 | F5: 2.006
A6: Kd | B6: 238.4 | C6: 258.4 | D6: 298.4 | E6: 223.2 | F6: 633.7
A7: Std. Error
A8: Bmax | B8: 1.399 | C8: 1.028 | D8: 3.844 | E8: 0.7565 | F8: 13.81
A9: h | B9: 0.2122 | C9: 0.639 | D9: 0.4562 | E9: 0.2631 | F9: 0.8167
A10: Kd | B10: 11.56 | C10: 14.26 | D10: 37.67 | E10: 10.29 | F10: 420.6
A11: 95% CI (asymptotic)
A12: Bmax | B12: 35.57 to 41.35 | C12: 18.83 to 23.08 | D12: 28.54 to 44.41 | E12: 20.64 to 23.76 | F12: -7.401 to 49.60
A13: h | B13: 1.881 to 2.757 | C13: 2.217 to 4.855 | D13: 1.322 to 3.205 | E13: 2.011 to 3.098 | F13: 0.3208 to 3.692
A14: Kd | B14: 214.5 to 262.3 | C14: 229.0 to 287.8 | D14: 220.6 to 376.1 | E14: 202.0 to 244.5 | F14: -234.5 to 1502
A15: Goodness of Fit
A16: Degrees of Freedom | B16: 24 | C16: 24 | D16: 24 | E16: 24 | F16: 24
A17: R squared | B17: 0.9888 | C17: 0.9607 | D17: 0.9466 | E17: 0.9855 | F17: 0.8772
A18: Sum of Squares | B18: 59.72 | C18: 74.51 | D18: 207.1 | E18: 27.13 | F18: 76.76
A19: Sy.x | B19: 1.577 | C19: 1.762 | D19: 2.938 | E19: 1.063 | F19: 1.788
A21: Number of points
A22: # of X values | B22: 27 | C22: 27 | D22: 27 | E22: 27 | F22: 27
A23: # Y values analyzed | B23: 27 | C23: 27 | D23: 27 | E23: 27 | F23: 27
B25: AtPCO5-ZPR2
A27: Comparison of Fits
A28: Null hypothesis | B28: One site -- Specific binding
A29: Alternative hypothesis | B29: One site -- Specific binding with Hill slope
A30: P value | B30: 0.861
A31: Conclusion (alpha = 0.05) | B31: Do not reject null hypothesis
A32: Preferred model | B32: One site -- Specific binding
A33: F (DFn, DFd) | B33: 0.03133 (1, 24)
A35: One site -- Specific binding
A36: Best-fit values
A37: Bmax | B37: 15.15
A38: Kd | B38: 692.3
A39: Std. Error
A40: Bmax | B40: 6.576
A41: Kd | B41: 513.4
A42: 95% CI (asymptotic)
A43: Bmax | B43: 1.608 to 28.70
A44: Kd | B44: -365.0 to 1750
A45: Goodness of Fit
A46: Degrees of Freedom | B46: 25
A47: R squared | B47: 0.6746
A48: Sum of Squares | B48: 81.83
A49: Sy.x | B49: 1.809
A51: One site -- Specific binding with Hill slope
A52: Best-fit values
A53: Bmax | B53: 20.74
A54: h | B54: 0.8596
A55: Kd | B55: 1311
A56: Std. Error
A57: Bmax | B57: 49.29
A58: h | B58: 0.6637
A59: Kd | B59: 6237
A60: 95% CI (asymptotic)
A61: Bmax | B61: -80.99 to 122.5
A62: h | B62: -0.5102 to 2.229
A63: Kd | B63: -11562 to 14185
A64: Goodness of Fit
A65: Degrees of Freedom | B65: 24
A66: R squared | B66: 0.675
A67: Sum of Squares | B67: 81.72
A68: Sy.x | B68: 1.845
A70: Number of points
A71: # of X values | B71: 27
A72: # Y values analyzed | B72: 27
B75: AtPCO4-VRN2 | C75: AtPCO5-VRN2
A77: One site -- Specific binding
A78: Best-fit values
A79: Bmax | B79: 29.87 | C79: 11.88
A80: Kd | B80: 495 | C80: 107.3
A81: Std. Error
A82: Bmax | B82: 3.156 | C82: 0.8332
A83: Kd | B83: 98.44 | C83: 29.68
A84: 95% CI (asymptotic)
A85: Bmax | B85: 23.32 to 36.41 | C85: 10.16 to 13.60
A86: Kd | B86: 290.8 to 699.1 | C86: 45.93 to 168.7
A87: Goodness of Fit
A88: Degrees of Freedom | B88: 22 | C88: 23
A89: R squared | B89: 0.9599 | C89: 0.8362
A90: Sum of Squares | B90: 31.38 | C90: 40.6
A91: Sy.x | B91: 1.194 | C91: 1.329
A93: Number of points
A94: # of X values | B94: 27 | C94: 27
A95: # Y values analyzed | B95: 24 | C95: 25
